{"text_format":"3","workbook":"xlsx","n_sheets":4,"sheets":["Bewertungserfassung","Eigene Leistung","Einstellungen","Berechnungen"],"not_rendered":{"defined_names":3,"comments":1},"read":"whole","date_system":"1900"}

{"sheet":"Bewertungserfassung","index":0,"n_rows":14,"n_cols":6,"rows_kept":14}
[null,"Geben Sie hier Ihre Bewertungen ein"]
[]
[null,null,"Kurs","Typ","Beschreibung","Bewertung"]
[null,null,"Französisch","Hausaufgaben","Geschichte 2. Weltkrieg",{"v":0.8,"d":"80%"}]
[null,null,"Programmierung in Java - Fortgeschrittene","Zwischenprüfung",null,{"v":0.75,"d":"75%"}]
[null,null,"Spanisch","Hausaufgaben",null,{"v":0.5,"d":"50%"}]
[null,null,"Theoretische Physik","Hausaufgaben",null,{"v":0.95,"d":"95%"}]
[null,null,"Französisch","Hausaufgaben","Geschichte 1. Weltkrieg",{"v":0.9,"d":"90%"}]
[null,null,"Französisch","Hausaufgaben","Seiten 30 - 41",{"v":0.8,"d":"80%"}]
[null,null,"Freies Schreiben","Referat","Thesenpapier",{"v":0.95,"d":"95%"}]
[null,null,"Mathematik 1","Hausaufgaben","Seiten 21 + 26",{"v":0.8,"d":"80%"}]
[null,null,"Mathematik 2","Hausaufgaben","Seiten 15 + 18",{"v":0.85,"d":"85%"}]
[null,null,"Mathematik 1","Hausaufgaben","Seiten 34 - 36",{"v":0.8,"d":"80%"}]
[null,null,"Mathematik 2","Mündliche Prüfung",null,{"v":0.95,"d":"95%"}]

{"sheet":"Eigene Leistung","index":1,"n_rows":31,"n_cols":8,"rows_kept":31}
[null,"Eigene Leistung"]
[]
[null,null,"Summen"]
[null,null,{"$f":"\"Stunden: \"&SUM(tblKurse[Aufgewendete Stunden])","v":"Stunden: 24"},{"$f":"AVERAGE(D7:D31)","v":{"v":0.8104761904761906,"d":"81%"}},{"$f":"AVERAGE(E7:E31)","v":{"v":2.7142857142857144,"d":"2.71"}},{"$f":"SUM(F7:F31)","v":{"v":2.625,"d":"2.63"}},{"$f":"IFERROR(HLOOKUP(D4,lstDurchschnittsnotenZuordnung,2),\"\")","v":"B-"}]
[]
[null,null,"Kurse","%","Durchschnittsnote","gew.Durchschnittsnote","Einstufung","Gesamtleistung"]
[null,null,{"$f":"Berechnungen!C6","v":"Französisch"},{"$f":"Berechnungen!AL6","v":{"v":0.8333333333333334,"d":"83%"}},{"$f":"Berechnungen!AM6","v":{"v":3,"d":"3.00"}},{"$f":"IFERROR(E7*Einstellungen!D9/SUM(tblKurse[Aufgewendete Stunden]),\"\")","v":{"v":0.375,"d":"0.38"}},{"$f":"Berechnungen!AN6","v":"B"}]
[null,null,{"$f":"Berechnungen!C7","v":"Theoretische Physik"},{"$f":"Berechnungen!AL7","v":{"v":0.95,"d":"95%"}},{"$f":"Berechnungen!AM7","v":{"v":4,"d":"4.00"}},{"$f":"IFERROR(E8*Einstellungen!D10/SUM(tblKurse[Aufgewendete Stunden]),\"\")","v":{"v":0.5,"d":"0.50"}},{"$f":"Berechnungen!AN7","v":"A"}]
[null,null,{"$f":"Berechnungen!C8","v":"Mathematik 1"},{"$f":"Berechnungen!AL8","v":{"v":0.8000000000000002,"d":"80%"}},{"$f":"Berechnungen!AM8","v":2.67},{"$f":"IFERROR(E9*Einstellungen!D11/SUM(tblKurse[Aufgewendete Stunden]),\"\")","v":{"v":0.445,"d":"0.45"}},{"$f":"Berechnungen!AN8","v":"B-"}]
[null,null,{"$f":"Berechnungen!C9","v":"Mathematik 2"},{"$f":"Berechnungen!AL9","v":{"v":0.89,"d":"89%"}},{"$f":"Berechnungen!AM9","v":3.33},{"$f":"IFERROR(E10*Einstellungen!D12/SUM(tblKurse[Aufgewendete Stunden]),\"\")","v":{"v":0.555,"d":"0.56"}},{"$f":"Berechnungen!AN9","v":"B+"}]
[null,null,{"$f":"Berechnungen!C10","v":"Programmierung in Java - Fortgeschrittene"},{"$f":"Berechnungen!AL10","v":{"v":0.7500000000000001,"d":"75%"}},{"$f":"Berechnungen!AM10","v":{"v":2,"d":"2.00"}},{"$f":"IFERROR(E11*Einstellungen!D13/SUM(tblKurse[Aufgewendete Stunden]),\"\")","v":{"v":0.4166666666666667,"d":"0.42"}},{"$f":"Berechnungen!AN10","v":"C"}]
[null,null,{"$f":"Berechnungen!C11","v":"Spanisch"},{"$f":"Berechnungen!AL11","v":{"v":0.5,"d":"50%"}},{"$f":"Berechnungen!AM11","v":{"v":0,"d":"0.00"}},{"$f":"IFERROR(E12*Einstellungen!D14/SUM(tblKurse[Aufgewendete Stunden]),\"\")","v":{"v":0,"d":"0.00"}},{"$f":"Berechnungen!AN11","v":"F"}]
[null,null,{"$f":"Berechnungen!C12","v":"Freies Schreiben"},{"$f":"Berechnungen!AL12","v":{"v":0.95,"d":"95%"}},{"$f":"Berechnungen!AM12","v":{"v":4,"d":"4.00"}},{"$f":"IFERROR(E13*Einstellungen!D15/SUM(tblKurse[Aufgewendete Stunden]),\"\")","v":{"v":0.3333333333333333,"d":"0.33"}},{"$f":"Berechnungen!AN12","v":"A"}]
[null,null,{"$f":"Berechnungen!C13","v":""},{"$f":"Berechnungen!AL13","v":""},{"$f":"Berechnungen!AM13","v":""},{"$f":"IFERROR(E14*Einstellungen!D16/SUM(tblKurse[Aufgewendete Stunden]),\"\")","v":""},{"$f":"Berechnungen!AN13","v":""}]
[null,null,{"$f":"Berechnungen!C14","v":""},{"$f":"Berechnungen!AL14","v":""},{"$f":"Berechnungen!AM14","v":""},{"$f":"IFERROR(E15*Einstellungen!D17/SUM(tblKurse[Aufgewendete Stunden]),\"\")","v":""},{"$f":"Berechnungen!AN14","v":""}]
[null,null,{"$f":"Berechnungen!C15","v":""},{"$f":"Berechnungen!AL15","v":""},{"$f":"Berechnungen!AM15","v":""},{"$f":"IFERROR(E16*Einstellungen!D18/SUM(tblKurse[Aufgewendete Stunden]),\"\")","v":""},{"$f":"Berechnungen!AN15","v":""}]
[null,null,{"$f":"Berechnungen!C16","v":""},{"$f":"Berechnungen!AL16","v":""},{"$f":"Berechnungen!AM16","v":""},{"$f":"IFERROR(E17*Einstellungen!D19/SUM(tblKurse[Aufgewendete Stunden]),\"\")","v":""},{"$f":"Berechnungen!AN16","v":""}]
[null,null,{"$f":"Berechnungen!C17","v":""},{"$f":"Berechnungen!AL17","v":""},{"$f":"Berechnungen!AM17","v":""},{"$f":"IFERROR(E18*Einstellungen!D20/SUM(tblKurse[Aufgewendete Stunden]),\"\")","v":""},{"$f":"Berechnungen!AN17","v":""}]
[null,null,{"$f":"Berechnungen!C18","v":""},{"$f":"Berechnungen!AL18","v":""},{"$f":"Berechnungen!AM18","v":""},{"$f":"IFERROR(E19*Einstellungen!D21/SUM(tblKurse[Aufgewendete Stunden]),\"\")","v":""},{"$f":"Berechnungen!AN18","v":""}]
[null,null,{"$f":"Berechnungen!C19","v":""},{"$f":"Berechnungen!AL19","v":""},{"$f":"Berechnungen!AM19","v":""},{"$f":"IFERROR(E20*Einstellungen!D22/SUM(tblKurse[Aufgewendete Stunden]),\"\")","v":""},{"$f":"Berechnungen!AN19","v":""}]
[null,null,{"$f":"Berechnungen!C20","v":""},{"$f":"Berechnungen!AL20","v":""},{"$f":"Berechnungen!AM20","v":""},{"$f":"IFERROR(E21*Einstellungen!D23/SUM(tblKurse[Aufgewendete Stunden]),\"\")","v":""},{"$f":"Berechnungen!AN20","v":""}]
[null,null,{"$f":"Berechnungen!C21","v":""},{"$f":"Berechnungen!AL21","v":""},{"$f":"Berechnungen!AM21","v":""},{"$f":"IFERROR(E22*Einstellungen!D24/SUM(tblKurse[Aufgewendete Stunden]),\"\")","v":""},{"$f":"Berechnungen!AN21","v":""}]
[null,null,{"$f":"Berechnungen!C22","v":""},{"$f":"Berechnungen!AL22","v":""},{"$f":"Berechnungen!AM22","v":""},{"$f":"IFERROR(E23*Einstellungen!D25/SUM(tblKurse[Aufgewendete Stunden]),\"\")","v":""},{"$f":"Berechnungen!AN22","v":""}]
[null,null,{"$f":"Berechnungen!C23","v":""},{"$f":"Berechnungen!AL23","v":""},{"$f":"Berechnungen!AM23","v":""},{"$f":"IFERROR(E24*Einstellungen!D26/SUM(tblKurse[Aufgewendete Stunden]),\"\")","v":""},{"$f":"Berechnungen!AN23","v":""}]
[null,null,{"$f":"Berechnungen!C24","v":""},{"$f":"Berechnungen!AL24","v":""},{"$f":"Berechnungen!AM24","v":""},{"$f":"IFERROR(E25*Einstellungen!D27/SUM(tblKurse[Aufgewendete Stunden]),\"\")","v":""},{"$f":"Berechnungen!AN24","v":""}]
[null,null,{"$f":"Berechnungen!C25","v":""},{"$f":"Berechnungen!AL25","v":""},{"$f":"Berechnungen!AM25","v":""},{"$f":"IFERROR(E26*Einstellungen!D28/SUM(tblKurse[Aufgewendete Stunden]),\"\")","v":""},{"$f":"Berechnungen!AN25","v":""}]
[null,null,{"$f":"Berechnungen!C26","v":""},{"$f":"Berechnungen!AL26","v":""},{"$f":"Berechnungen!AM26","v":""},{"$f":"IFERROR(E27*Einstellungen!D29/SUM(tblKurse[Aufgewendete Stunden]),\"\")","v":""},{"$f":"Berechnungen!AN26","v":""}]
[null,null,{"$f":"Berechnungen!C27","v":""},{"$f":"Berechnungen!AL27","v":""},{"$f":"Berechnungen!AM27","v":""},{"$f":"IFERROR(E28*Einstellungen!D30/SUM(tblKurse[Aufgewendete Stunden]),\"\")","v":""},{"$f":"Berechnungen!AN27","v":""}]
[null,null,{"$f":"Berechnungen!C28","v":""},{"$f":"Berechnungen!AL28","v":""},{"$f":"Berechnungen!AM28","v":""},{"$f":"IFERROR(E29*Einstellungen!D31/SUM(tblKurse[Aufgewendete Stunden]),\"\")","v":""},{"$f":"Berechnungen!AN28","v":""}]
[null,null,{"$f":"Berechnungen!C29","v":""},{"$f":"Berechnungen!AL29","v":""},{"$f":"Berechnungen!AM29","v":""},{"$f":"IFERROR(E30*Einstellungen!D32/SUM(tblKurse[Aufgewendete Stunden]),\"\")","v":""},{"$f":"Berechnungen!AN29","v":""}]
[null,null,{"$f":"Berechnungen!C30","v":""},{"$f":"Berechnungen!AL30","v":""},{"$f":"Berechnungen!AM30","v":""},{"$f":"IFERROR(E31*Einstellungen!D33/SUM(tblKurse[Aufgewendete Stunden]),\"\")","v":""},{"$f":"Berechnungen!AN30","v":""}]

{"sheet":"Einstellungen","index":2,"n_rows":15,"n_cols":16,"rows_kept":15,"merged":[[5,2,5,15]]}
[null,"Einstellungen"]
[null,null,"Zuordnung von Bewertungen und Durchschnittsnoten"]
[null,null,"Prozentsatz",{"v":0,"d":"0%"},{"v":0.6,"d":"60%"},{"v":0.63,"d":"63%"},{"v":0.67,"d":"67%"},{"v":0.7,"d":"70%"},{"v":0.73,"d":"73%"},{"v":0.77,"d":"77%"},{"v":0.8,"d":"80%"},{"v":0.83,"d":"83%"},{"v":0.87,"d":"87%"},{"v":0.9,"d":"90%"},{"v":0.93,"d":"93%"},{"v":0.97,"d":"97%"}]
[null,null,"Einstufung","F","D-","D","D+","C-","C","C+","B-","B","B+","A-","A","A+"]
[null,null,"Durchschnittsnote",0,0.67,1,1.33,1.67,2,2.33,2.67,3,3.33,3.67,4,4]
[]
[null,null,"Gewichtete Bewertungen für bis zu 25 Kurse"]
[null,null,"Belegte Kurse","Aufgewendete Stunden","Hausaufgaben","Referat","Mündliche Prüfung","Projekt","Zwischenprüfung","Abschlussprüfung","Sonstiges","Gesamtprozentsatz"]
[null,null,"Französisch",{"v":3,"d":"3.0"},{"v":0.1,"d":"10%"},{"v":0.15,"d":"15%"},{"v":0.15,"d":"15%"},{"v":0.1,"d":"10%"},{"v":0.2,"d":"20%"},{"v":0.3,"d":"30%"},null,{"$f":"SUM(tblKurse[[#This Row],[Hausaufgaben]:[Sonstiges]])","v":{"v":1,"d":"100%"}}]
[null,null,"Theoretische Physik",{"v":3,"d":"3.0"},{"v":0.15,"d":"15%"},{"v":0.15,"d":"15%"},{"v":0.1,"d":"10%"},{"v":0.1,"d":"10%"},{"v":0.15,"d":"15%"},{"v":0.3,"d":"30%"},{"v":0.05,"d":"5%"},{"$f":"SUM(tblKurse[[#This Row],[Hausaufgaben]:[Sonstiges]])","v":{"v":1,"d":"100%"}}]
[null,null,"Mathematik 1",{"v":4,"d":"4.0"},{"v":0.1,"d":"10%"},{"v":0.15,"d":"15%"},{"v":0.15,"d":"15%"},{"v":0.1,"d":"10%"},{"v":0.2,"d":"20%"},{"v":0.3,"d":"30%"},null,{"$f":"SUM(tblKurse[[#This Row],[Hausaufgaben]:[Sonstiges]])","v":{"v":1,"d":"100%"}}]
[null,null,"Mathematik 2",{"v":4,"d":"4.0"},{"v":0.15,"d":"15%"},{"v":0.15,"d":"15%"},{"v":0.1,"d":"10%"},{"v":0.1,"d":"10%"},{"v":0.15,"d":"15%"},{"v":0.3,"d":"30%"},{"v":0.05,"d":"5%"},{"$f":"SUM(tblKurse[[#This Row],[Hausaufgaben]:[Sonstiges]])","v":{"v":1,"d":"100%"}}]
[null,null,"Programmierung in Java - Fortgeschrittene",{"v":5,"d":"5.0"},{"v":0.15,"d":"15%"},{"v":0.15,"d":"15%"},{"v":0.1,"d":"10%"},{"v":0.1,"d":"10%"},{"v":0.2,"d":"20%"},{"v":0.3,"d":"30%"},null,{"$f":"SUM(tblKurse[[#This Row],[Hausaufgaben]:[Sonstiges]])","v":{"v":1,"d":"100%"}}]
[null,null,"Spanisch",{"v":3,"d":"3.0"},{"v":0.1,"d":"10%"},{"v":0.15,"d":"15%"},{"v":0.17,"d":"17%"},{"v":0.13,"d":"13%"},{"v":0.2,"d":"20%"},{"v":0.2,"d":"20%"},{"v":0.05,"d":"5%"},{"$f":"SUM(tblKurse[[#This Row],[Hausaufgaben]:[Sonstiges]])","v":{"v":1,"d":"100%"}}]
[null,null,"Freies Schreiben",{"v":2,"d":"2.0"},{"v":0.15,"d":"15%"},{"v":0.15,"d":"15%"},{"v":0.12,"d":"12%"},{"v":0.15,"d":"15%"},{"v":0.15,"d":"15%"},{"v":0.25,"d":"25%"},{"v":0.03,"d":"3%"},{"$f":"SUM(tblKurse[[#This Row],[Hausaufgaben]:[Sonstiges]])","v":{"v":1,"d":"100%"}}]

{"sheet":"Berechnungen","index":3,"n_rows":657,"n_cols":40,"rows_kept":657,"hidden":true}
[null,"Berechnungen"]
[null,null,"Dieses Arbeitsblatt enthält Berechnungen Ihrer Noten und Durchschnittsnoten und sollte ausgeblendet bleiben. Jegliche Änderung an diesem Arbeitsblatt kann zu Fehlern führen."]
[]
[null,null,"Liste der aktuellen Kurse","Bewertungen (aus 1)",{"$nulls":24},"Notenberechnung"]
[null,null,"Kurs",1,2,3,4,5,6,7,8,9,10,11,12,13,14,15,16,17,18,19,20,21,22,23,24,25,{"$f":"tblKurse[[#Headers],[Hausaufgaben]]","v":"Hausaufgaben"},{"$f":"tblKurse[[#Headers],[Referat]]","v":"Referat"},{"$f":"tblKurse[[#Headers],[Mündliche Prüfung]]","v":"Mündliche Prüfung"},{"$f":"tblKurse[[#Headers],[Projekt]]","v":"Projekt"},{"$f":"tblKurse[[#Headers],[Zwischenprüfung]]","v":"Zwischenprüfung"},{"$f":"tblKurse[[#Headers],[Abschlussprüfung]]","v":"Abschlussprüfung"},{"$f":"tblKurse[[#Headers],[Sonstiges]]","v":"Sonstiges"},"Summe","Mögliche Gesamtpunktzahl","Gesamtprozentsatz","Note","Einstufung"]
[null,null,{"$f":"IF(Einstellungen!C9=\"\",\"\",Einstellungen!C9)","v":"Französisch"},{"$f":"IFERROR(INDEX(TblKlassenbewertungen[],MATCH($C6:$C30&D$5:AB$5,Berechnungen!$C$33:$C$657,0),4),\"\")","v":{"v":0.8,"d":"80%"}},{"v":0.9,"d":"90%"},{"v":0.8,"d":"80%"},"","","","","","","","","","","","","","","","","","","","","","",{"$f":"IFERROR(AVERAGEIFS(TblKlassenbewertungen[Bewertung],TblKlassenbewertungen[Kurs],Berechnungen!$C6,TblKlassenbewertungen[Typ],Berechnungen!AC$5)*Einstellungen!E9,\"\")","v":0.08333333333333334},{"$f":"IFERROR(AVERAGEIFS(TblKlassenbewertungen[Bewertung],TblKlassenbewertungen[Kurs],Berechnungen!$C6,TblKlassenbewertungen[Typ],Berechnungen!AD$5)*Einstellungen!F9,\"\")","v":""},{"$f":"IFERROR(AVERAGEIFS(TblKlassenbewertungen[Bewertung],TblKlassenbewertungen[Kurs],Berechnungen!$C6,TblKlassenbewertungen[Typ],Berechnungen!AE$5)*Einstellungen!G9,\"\")","v":""},{"$f":"IFERROR(AVERAGEIFS(TblKlassenbewertungen[Bewertung],TblKlassenbewertungen[Kurs],Berechnungen!$C6,TblKlassenbewertungen[Typ],Berechnungen!AF$5)*Einstellungen!H9,\"\")","v":""},{"$f":"IFERROR(AVERAGEIFS(TblKlassenbewertungen[Bewertung],TblKlassenbewertungen[Kurs],Berechnungen!$C6,TblKlassenbewertungen[Typ],Berechnungen!AG$5)*Einstellungen!I9,\"\")","v":""},{"$f":"IFERROR(AVERAGEIFS(TblKlassenbewertungen[Bewertung],TblKlassenbewertungen[Kurs],Berechnungen!$C6,TblKlassenbewertungen[Typ],Berechnungen!AH$5)*Einstellungen!J9,\"\")","v":""},{"$f":"IFERROR(AVERAGEIFS(TblKlassenbewertungen[Bewertung],TblKlassenbewertungen[Kurs],Berechnungen!$C6,TblKlassenbewertungen[Typ],Berechnungen!AI$5)*Einstellungen!K9,\"\")","v":""},{"$f":"SUM(AC6:AI6)","v":0.08333333333333334},{"$f":"SUMIFS(Einstellungen!E9:K9,Berechnungen!AC6:AI6,\">0\")","v":0.1},{"$f":"IFERROR(AJ6/AK6,\"\")","v":{"v":0.8333333333333334,"d":"83%"}},{"$f":"IFERROR(HLOOKUP(AL6,lstDurchschnittsnotenZuordnung,3),\"\")","v":3},{"$f":"IFERROR(HLOOKUP(AL6,lstDurchschnittsnotenZuordnung,2),\"\")","v":"B"}]
[null,null,{"$f":"IF(Einstellungen!C10=\"\",\"\",Einstellungen!C10)","v":"Theoretische Physik"},{"v":0.95,"d":"95%"},"","","","","","","","","","","","","","","","","","","","","","","","",{"$f":"IFERROR(AVERAGEIFS(TblKlassenbewertungen[Bewertung],TblKlassenbewertungen[Kurs],Berechnungen!$C7,TblKlassenbewertungen[Typ],Berechnungen!AC$5)*Einstellungen!E10,\"\")","v":0.1425},{"$f":"IFERROR(AVERAGEIFS(TblKlassenbewertungen[Bewertung],TblKlassenbewertungen[Kurs],Berechnungen!$C7,TblKlassenbewertungen[Typ],Berechnungen!AD$5)*Einstellungen!F10,\"\")","v":""},{"$f":"IFERROR(AVERAGEIFS(TblKlassenbewertungen[Bewertung],TblKlassenbewertungen[Kurs],Berechnungen!$C7,TblKlassenbewertungen[Typ],Berechnungen!AE$5)*Einstellungen!G10,\"\")","v":""},{"$f":"IFERROR(AVERAGEIFS(TblKlassenbewertungen[Bewertung],TblKlassenbewertungen[Kurs],Berechnungen!$C7,TblKlassenbewertungen[Typ],Berechnungen!AF$5)*Einstellungen!H10,\"\")","v":""},{"$f":"IFERROR(AVERAGEIFS(TblKlassenbewertungen[Bewertung],TblKlassenbewertungen[Kurs],Berechnungen!$C7,TblKlassenbewertungen[Typ],Berechnungen!AG$5)*Einstellungen!I10,\"\")","v":""},{"$f":"IFERROR(AVERAGEIFS(TblKlassenbewertungen[Bewertung],TblKlassenbewertungen[Kurs],Berechnungen!$C7,TblKlassenbewertungen[Typ],Berechnungen!AH$5)*Einstellungen!J10,\"\")","v":""},{"$f":"IFERROR(AVERAGEIFS(TblKlassenbewertungen[Bewertung],TblKlassenbewertungen[Kurs],Berechnungen!$C7,TblKlassenbewertungen[Typ],Berechnungen!AI$5)*Einstellungen!K10,\"\")","v":""},{"$f":"SUM(AC7:AI7)","v":0.1425},{"$f":"SUMIFS(Einstellungen!E10:K10,Berechnungen!AC7:AI7,\">0\")","v":0.15},{"$f":"IFERROR(AJ7/AK7,\"\")","v":{"v":0.95,"d":"95%"}},4,"A"]
[null,null,{"$f":"IF(Einstellungen!C11=\"\",\"\",Einstellungen!C11)","v":"Mathematik 1"},{"v":0.8,"d":"80%"},{"v":0.8,"d":"80%"},"","","","","","","","","","","","","","","","","","","","","","","",{"$f":"IFERROR(AVERAGEIFS(TblKlassenbewertungen[Bewertung],TblKlassenbewertungen[Kurs],Berechnungen!$C8,TblKlassenbewertungen[Typ],Berechnungen!AC$5)*Einstellungen!E11,\"\")","v":0.08000000000000002},{"$f":"IFERROR(AVERAGEIFS(TblKlassenbewertungen[Bewertung],TblKlassenbewertungen[Kurs],Berechnungen!$C8,TblKlassenbewertungen[Typ],Berechnungen!AD$5)*Einstellungen!F11,\"\")","v":""},{"$f":"IFERROR(AVERAGEIFS(TblKlassenbewertungen[Bewertung],TblKlassenbewertungen[Kurs],Berechnungen!$C8,TblKlassenbewertungen[Typ],Berechnungen!AE$5)*Einstellungen!G11,\"\")","v":""},{"$f":"IFERROR(AVERAGEIFS(TblKlassenbewertungen[Bewertung],TblKlassenbewertungen[Kurs],Berechnungen!$C8,TblKlassenbewertungen[Typ],Berechnungen!AF$5)*Einstellungen!H11,\"\")","v":""},{"$f":"IFERROR(AVERAGEIFS(TblKlassenbewertungen[Bewertung],TblKlassenbewertungen[Kurs],Berechnungen!$C8,TblKlassenbewertungen[Typ],Berechnungen!AG$5)*Einstellungen!I11,\"\")","v":""},{"$f":"IFERROR(AVERAGEIFS(TblKlassenbewertungen[Bewertung],TblKlassenbewertungen[Kurs],Berechnungen!$C8,TblKlassenbewertungen[Typ],Berechnungen!AH$5)*Einstellungen!J11,\"\")","v":""},{"$f":"IFERROR(AVERAGEIFS(TblKlassenbewertungen[Bewertung],TblKlassenbewertungen[Kurs],Berechnungen!$C8,TblKlassenbewertungen[Typ],Berechnungen!AI$5)*Einstellungen!K11,\"\")","v":""},0.08000000000000002,{"$f":"SUMIFS(Einstellungen!E11:K11,Berechnungen!AC8:AI8,\">0\")","v":0.1},{"v":0.8000000000000002,"d":"80%"},2.67,"B-"]
[null,null,{"$f":"IF(Einstellungen!C12=\"\",\"\",Einstellungen!C12)","v":"Mathematik 2"},{"v":0.85,"d":"85%"},{"v":0.95,"d":"95%"},"","","","","","","","","","","","","","","","","","","","","","","",{"$f":"IFERROR(AVERAGEIFS(TblKlassenbewertungen[Bewertung],TblKlassenbewertungen[Kurs],Berechnungen!$C9,TblKlassenbewertungen[Typ],Berechnungen!AC$5)*Einstellungen!E12,\"\")","v":0.1275},{"$f":"IFERROR(AVERAGEIFS(TblKlassenbewertungen[Bewertung],TblKlassenbewertungen[Kurs],Berechnungen!$C9,TblKlassenbewertungen[Typ],Berechnungen!AD$5)*Einstellungen!F12,\"\")","v":""},{"$f":"IFERROR(AVERAGEIFS(TblKlassenbewertungen[Bewertung],TblKlassenbewertungen[Kurs],Berechnungen!$C9,TblKlassenbewertungen[Typ],Berechnungen!AE$5)*Einstellungen!G12,\"\")","v":0.095},{"$f":"IFERROR(AVERAGEIFS(TblKlassenbewertungen[Bewertung],TblKlassenbewertungen[Kurs],Berechnungen!$C9,TblKlassenbewertungen[Typ],Berechnungen!AF$5)*Einstellungen!H12,\"\")","v":""},{"$f":"IFERROR(AVERAGEIFS(TblKlassenbewertungen[Bewertung],TblKlassenbewertungen[Kurs],Berechnungen!$C9,TblKlassenbewertungen[Typ],Berechnungen!AG$5)*Einstellungen!I12,\"\")","v":""},{"$f":"IFERROR(AVERAGEIFS(TblKlassenbewertungen[Bewertung],TblKlassenbewertungen[Kurs],Berechnungen!$C9,TblKlassenbewertungen[Typ],Berechnungen!AH$5)*Einstellungen!J12,\"\")","v":""},{"$f":"IFERROR(AVERAGEIFS(TblKlassenbewertungen[Bewertung],TblKlassenbewertungen[Kurs],Berechnungen!$C9,TblKlassenbewertungen[Typ],Berechnungen!AI$5)*Einstellungen!K12,\"\")","v":""},0.2225,{"$f":"SUMIFS(Einstellungen!E12:K12,Berechnungen!AC9:AI9,\">0\")","v":0.25},{"v":0.89,"d":"89%"},3.33,"B+"]
[null,null,{"$f":"IF(Einstellungen!C13=\"\",\"\",Einstellungen!C13)","v":"Programmierung in Java - Fortgeschrittene"},{"v":0.75,"d":"75%"},"","","","","","","","","","","","","","","","","","","","","","","","",{"$f":"IFERROR(AVERAGEIFS(TblKlassenbewertungen[Bewertung],TblKlassenbewertungen[Kurs],Berechnungen!$C10,TblKlassenbewertungen[Typ],Berechnungen!AC$5)*Einstellungen!E13,\"\")","v":""},{"$f":"IFERROR(AVERAGEIFS(TblKlassenbewertungen[Bewertung],TblKlassenbewertungen[Kurs],Berechnungen!$C10,TblKlassenbewertungen[Typ],Berechnungen!AD$5)*Einstellungen!F13,\"\")","v":""},{"$f":"IFERROR(AVERAGEIFS(TblKlassenbewertungen[Bewertung],TblKlassenbewertungen[Kurs],Berechnungen!$C10,TblKlassenbewertungen[Typ],Berechnungen!AE$5)*Einstellungen!G13,\"\")","v":""},{"$f":"IFERROR(AVERAGEIFS(TblKlassenbewertungen[Bewertung],TblKlassenbewertungen[Kurs],Berechnungen!$C10,TblKlassenbewertungen[Typ],Berechnungen!AF$5)*Einstellungen!H13,\"\")","v":""},{"$f":"IFERROR(AVERAGEIFS(TblKlassenbewertungen[Bewertung],TblKlassenbewertungen[Kurs],Berechnungen!$C10,TblKlassenbewertungen[Typ],Berechnungen!AG$5)*Einstellungen!I13,\"\")","v":0.15000000000000002},{"$f":"IFERROR(AVERAGEIFS(TblKlassenbewertungen[Bewertung],TblKlassenbewertungen[Kurs],Berechnungen!$C10,TblKlassenbewertungen[Typ],Berechnungen!AH$5)*Einstellungen!J13,\"\")","v":""},{"$f":"IFERROR(AVERAGEIFS(TblKlassenbewertungen[Bewertung],TblKlassenbewertungen[Kurs],Berechnungen!$C10,TblKlassenbewertungen[Typ],Berechnungen!AI$5)*Einstellungen!K13,\"\")","v":""},0.15000000000000002,{"$f":"SUMIFS(Einstellungen!E13:K13,Berechnungen!AC10:AI10,\">0\")","v":0.2},{"v":0.7500000000000001,"d":"75%"},2,"C"]
[null,null,{"$f":"IF(Einstellungen!C14=\"\",\"\",Einstellungen!C14)","v":"Spanisch"},{"v":0.5,"d":"50%"},"","","","","","","","","","","","","","","","","","","","","","","","",{"$f":"IFERROR(AVERAGEIFS(TblKlassenbewertungen[Bewertung],TblKlassenbewertungen[Kurs],Berechnungen!$C11,TblKlassenbewertungen[Typ],Berechnungen!AC$5)*Einstellungen!E14,\"\")","v":0.05},{"$f":"IFERROR(AVERAGEIFS(TblKlassenbewertungen[Bewertung],TblKlassenbewertungen[Kurs],Berechnungen!$C11,TblKlassenbewertungen[Typ],Berechnungen!AD$5)*Einstellungen!F14,\"\")","v":""},{"$f":"IFERROR(AVERAGEIFS(TblKlassenbewertungen[Bewertung],TblKlassenbewertungen[Kurs],Berechnungen!$C11,TblKlassenbewertungen[Typ],Berechnungen!AE$5)*Einstellungen!G14,\"\")","v":""},{"$f":"IFERROR(AVERAGEIFS(TblKlassenbewertungen[Bewertung],TblKlassenbewertungen[Kurs],Berechnungen!$C11,TblKlassenbewertungen[Typ],Berechnungen!AF$5)*Einstellungen!H14,\"\")","v":""},{"$f":"IFERROR(AVERAGEIFS(TblKlassenbewertungen[Bewertung],TblKlassenbewertungen[Kurs],Berechnungen!$C11,TblKlassenbewertungen[Typ],Berechnungen!AG$5)*Einstellungen!I14,\"\")","v":""},{"$f":"IFERROR(AVERAGEIFS(TblKlassenbewertungen[Bewertung],TblKlassenbewertungen[Kurs],Berechnungen!$C11,TblKlassenbewertungen[Typ],Berechnungen!AH$5)*Einstellungen!J14,\"\")","v":""},{"$f":"IFERROR(AVERAGEIFS(TblKlassenbewertungen[Bewertung],TblKlassenbewertungen[Kurs],Berechnungen!$C11,TblKlassenbewertungen[Typ],Berechnungen!AI$5)*Einstellungen!K14,\"\")","v":""},0.05,{"$f":"SUMIFS(Einstellungen!E14:K14,Berechnungen!AC11:AI11,\">0\")","v":0.1},{"v":0.5,"d":"50%"},0,"F"]
[null,null,{"$f":"IF(Einstellungen!C15=\"\",\"\",Einstellungen!C15)","v":"Freies Schreiben"},{"v":0.95,"d":"95%"},"","","","","","","","","","","","","","","","","","","","","","","","",{"$f":"IFERROR(AVERAGEIFS(TblKlassenbewertungen[Bewertung],TblKlassenbewertungen[Kurs],Berechnungen!$C12,TblKlassenbewertungen[Typ],Berechnungen!AC$5)*Einstellungen!E15,\"\")","v":""},{"$f":"IFERROR(AVERAGEIFS(TblKlassenbewertungen[Bewertung],TblKlassenbewertungen[Kurs],Berechnungen!$C12,TblKlassenbewertungen[Typ],Berechnungen!AD$5)*Einstellungen!F15,\"\")","v":0.1425},{"$f":"IFERROR(AVERAGEIFS(TblKlassenbewertungen[Bewertung],TblKlassenbewertungen[Kurs],Berechnungen!$C12,TblKlassenbewertungen[Typ],Berechnungen!AE$5)*Einstellungen!G15,\"\")","v":""},{"$f":"IFERROR(AVERAGEIFS(TblKlassenbewertungen[Bewertung],TblKlassenbewertungen[Kurs],Berechnungen!$C12,TblKlassenbewertungen[Typ],Berechnungen!AF$5)*Einstellungen!H15,\"\")","v":""},{"$f":"IFERROR(AVERAGEIFS(TblKlassenbewertungen[Bewertung],TblKlassenbewertungen[Kurs],Berechnungen!$C12,TblKlassenbewertungen[Typ],Berechnungen!AG$5)*Einstellungen!I15,\"\")","v":""},{"$f":"IFERROR(AVERAGEIFS(TblKlassenbewertungen[Bewertung],TblKlassenbewertungen[Kurs],Berechnungen!$C12,TblKlassenbewertungen[Typ],Berechnungen!AH$5)*Einstellungen!J15,\"\")","v":""},{"$f":"IFERROR(AVERAGEIFS(TblKlassenbewertungen[Bewertung],TblKlassenbewertungen[Kurs],Berechnungen!$C12,TblKlassenbewertungen[Typ],Berechnungen!AI$5)*Einstellungen!K15,\"\")","v":""},0.1425,{"$f":"SUMIFS(Einstellungen!E15:K15,Berechnungen!AC12:AI12,\">0\")","v":0.15},{"v":0.95,"d":"95%"},4,"A"]
[null,null,{"$f":"IF(Einstellungen!C16=\"\",\"\",Einstellungen!C16)","v":""},"","","","","","","","","","","","","","","","","","","","","","","","","",{"$f":"IFERROR(AVERAGEIFS(TblKlassenbewertungen[Bewertung],TblKlassenbewertungen[Kurs],Berechnungen!$C13,TblKlassenbewertungen[Typ],Berechnungen!AC$5)*Einstellungen!E16,\"\")","v":""},{"$f":"IFERROR(AVERAGEIFS(TblKlassenbewertungen[Bewertung],TblKlassenbewertungen[Kurs],Berechnungen!$C13,TblKlassenbewertungen[Typ],Berechnungen!AD$5)*Einstellungen!F16,\"\")","v":""},{"$f":"IFERROR(AVERAGEIFS(TblKlassenbewertungen[Bewertung],TblKlassenbewertungen[Kurs],Berechnungen!$C13,TblKlassenbewertungen[Typ],Berechnungen!AE$5)*Einstellungen!G16,\"\")","v":""},{"$f":"IFERROR(AVERAGEIFS(TblKlassenbewertungen[Bewertung],TblKlassenbewertungen[Kurs],Berechnungen!$C13,TblKlassenbewertungen[Typ],Berechnungen!AF$5)*Einstellungen!H16,\"\")","v":""},{"$f":"IFERROR(AVERAGEIFS(TblKlassenbewertungen[Bewertung],TblKlassenbewertungen[Kurs],Berechnungen!$C13,TblKlassenbewertungen[Typ],Berechnungen!AG$5)*Einstellungen!I16,\"\")","v":""},{"$f":"IFERROR(AVERAGEIFS(TblKlassenbewertungen[Bewertung],TblKlassenbewertungen[Kurs],Berechnungen!$C13,TblKlassenbewertungen[Typ],Berechnungen!AH$5)*Einstellungen!J16,\"\")","v":""},{"$f":"IFERROR(AVERAGEIFS(TblKlassenbewertungen[Bewertung],TblKlassenbewertungen[Kurs],Berechnungen!$C13,TblKlassenbewertungen[Typ],Berechnungen!AI$5)*Einstellungen!K16,\"\")","v":""},{"$f":"SUM(AC13:AI13)","v":0},{"$f":"SUMIFS(Einstellungen!E16:K16,Berechnungen!AC13:AI13,\">0\")","v":0},{"$f":"IFERROR(AJ13/AK13,\"\")","v":""},"",""]
[null,null,{"$f":"IF(Einstellungen!C17=\"\",\"\",Einstellungen!C17)","v":""},"","","","","","","","","","","","","","","","","","","","","","","","","",{"$f":"IFERROR(AVERAGEIFS(TblKlassenbewertungen[Bewertung],TblKlassenbewertungen[Kurs],Berechnungen!$C14,TblKlassenbewertungen[Typ],Berechnungen!AC$5)*Einstellungen!E17,\"\")","v":""},{"$f":"IFERROR(AVERAGEIFS(TblKlassenbewertungen[Bewertung],TblKlassenbewertungen[Kurs],Berechnungen!$C14,TblKlassenbewertungen[Typ],Berechnungen!AD$5)*Einstellungen!F17,\"\")","v":""},{"$f":"IFERROR(AVERAGEIFS(TblKlassenbewertungen[Bewertung],TblKlassenbewertungen[Kurs],Berechnungen!$C14,TblKlassenbewertungen[Typ],Berechnungen!AE$5)*Einstellungen!G17,\"\")","v":""},{"$f":"IFERROR(AVERAGEIFS(TblKlassenbewertungen[Bewertung],TblKlassenbewertungen[Kurs],Berechnungen!$C14,TblKlassenbewertungen[Typ],Berechnungen!AF$5)*Einstellungen!H17,\"\")","v":""},{"$f":"IFERROR(AVERAGEIFS(TblKlassenbewertungen[Bewertung],TblKlassenbewertungen[Kurs],Berechnungen!$C14,TblKlassenbewertungen[Typ],Berechnungen!AG$5)*Einstellungen!I17,\"\")","v":""},{"$f":"IFERROR(AVERAGEIFS(TblKlassenbewertungen[Bewertung],TblKlassenbewertungen[Kurs],Berechnungen!$C14,TblKlassenbewertungen[Typ],Berechnungen!AH$5)*Einstellungen!J17,\"\")","v":""},{"$f":"IFERROR(AVERAGEIFS(TblKlassenbewertungen[Bewertung],TblKlassenbewertungen[Kurs],Berechnungen!$C14,TblKlassenbewertungen[Typ],Berechnungen!AI$5)*Einstellungen!K17,\"\")","v":""},0,{"$f":"SUMIFS(Einstellungen!E17:K17,Berechnungen!AC14:AI14,\">0\")","v":0},"","",""]
[null,null,{"$f":"IF(Einstellungen!C18=\"\",\"\",Einstellungen!C18)","v":""},"","","","","","","","","","","","","","","","","","","","","","","","","",{"$f":"IFERROR(AVERAGEIFS(TblKlassenbewertungen[Bewertung],TblKlassenbewertungen[Kurs],Berechnungen!$C15,TblKlassenbewertungen[Typ],Berechnungen!AC$5)*Einstellungen!E18,\"\")","v":""},{"$f":"IFERROR(AVERAGEIFS(TblKlassenbewertungen[Bewertung],TblKlassenbewertungen[Kurs],Berechnungen!$C15,TblKlassenbewertungen[Typ],Berechnungen!AD$5)*Einstellungen!F18,\"\")","v":""},{"$f":"IFERROR(AVERAGEIFS(TblKlassenbewertungen[Bewertung],TblKlassenbewertungen[Kurs],Berechnungen!$C15,TblKlassenbewertungen[Typ],Berechnungen!AE$5)*Einstellungen!G18,\"\")","v":""},{"$f":"IFERROR(AVERAGEIFS(TblKlassenbewertungen[Bewertung],TblKlassenbewertungen[Kurs],Berechnungen!$C15,TblKlassenbewertungen[Typ],Berechnungen!AF$5)*Einstellungen!H18,\"\")","v":""},{"$f":"IFERROR(AVERAGEIFS(TblKlassenbewertungen[Bewertung],TblKlassenbewertungen[Kurs],Berechnungen!$C15,TblKlassenbewertungen[Typ],Berechnungen!AG$5)*Einstellungen!I18,\"\")","v":""},{"$f":"IFERROR(AVERAGEIFS(TblKlassenbewertungen[Bewertung],TblKlassenbewertungen[Kurs],Berechnungen!$C15,TblKlassenbewertungen[Typ],Berechnungen!AH$5)*Einstellungen!J18,\"\")","v":""},{"$f":"IFERROR(AVERAGEIFS(TblKlassenbewertungen[Bewertung],TblKlassenbewertungen[Kurs],Berechnungen!$C15,TblKlassenbewertungen[Typ],Berechnungen!AI$5)*Einstellungen!K18,\"\")","v":""},0,{"$f":"SUMIFS(Einstellungen!E18:K18,Berechnungen!AC15:AI15,\">0\")","v":0},"","",""]
[null,null,{"$f":"IF(Einstellungen!C19=\"\",\"\",Einstellungen!C19)","v":""},"","","","","","","","","","","","","","","","","","","","","","","","","",{"$f":"IFERROR(AVERAGEIFS(TblKlassenbewertungen[Bewertung],TblKlassenbewertungen[Kurs],Berechnungen!$C16,TblKlassenbewertungen[Typ],Berechnungen!AC$5)*Einstellungen!E19,\"\")","v":""},{"$f":"IFERROR(AVERAGEIFS(TblKlassenbewertungen[Bewertung],TblKlassenbewertungen[Kurs],Berechnungen!$C16,TblKlassenbewertungen[Typ],Berechnungen!AD$5)*Einstellungen!F19,\"\")","v":""},{"$f":"IFERROR(AVERAGEIFS(TblKlassenbewertungen[Bewertung],TblKlassenbewertungen[Kurs],Berechnungen!$C16,TblKlassenbewertungen[Typ],Berechnungen!AE$5)*Einstellungen!G19,\"\")","v":""},{"$f":"IFERROR(AVERAGEIFS(TblKlassenbewertungen[Bewertung],TblKlassenbewertungen[Kurs],Berechnungen!$C16,TblKlassenbewertungen[Typ],Berechnungen!AF$5)*Einstellungen!H19,\"\")","v":""},{"$f":"IFERROR(AVERAGEIFS(TblKlassenbewertungen[Bewertung],TblKlassenbewertungen[Kurs],Berechnungen!$C16,TblKlassenbewertungen[Typ],Berechnungen!AG$5)*Einstellungen!I19,\"\")","v":""},{"$f":"IFERROR(AVERAGEIFS(TblKlassenbewertungen[Bewertung],TblKlassenbewertungen[Kurs],Berechnungen!$C16,TblKlassenbewertungen[Typ],Berechnungen!AH$5)*Einstellungen!J19,\"\")","v":""},{"$f":"IFERROR(AVERAGEIFS(TblKlassenbewertungen[Bewertung],TblKlassenbewertungen[Kurs],Berechnungen!$C16,TblKlassenbewertungen[Typ],Berechnungen!AI$5)*Einstellungen!K19,\"\")","v":""},0,{"$f":"SUMIFS(Einstellungen!E19:K19,Berechnungen!AC16:AI16,\">0\")","v":0},"","",""]
[null,null,{"$f":"IF(Einstellungen!C20=\"\",\"\",Einstellungen!C20)","v":""},"","","","","","","","","","","","","","","","","","","","","","","","","",{"$f":"IFERROR(AVERAGEIFS(TblKlassenbewertungen[Bewertung],TblKlassenbewertungen[Kurs],Berechnungen!$C17,TblKlassenbewertungen[Typ],Berechnungen!AC$5)*Einstellungen!E20,\"\")","v":""},{"$f":"IFERROR(AVERAGEIFS(TblKlassenbewertungen[Bewertung],TblKlassenbewertungen[Kurs],Berechnungen!$C17,TblKlassenbewertungen[Typ],Berechnungen!AD$5)*Einstellungen!F20,\"\")","v":""},{"$f":"IFERROR(AVERAGEIFS(TblKlassenbewertungen[Bewertung],TblKlassenbewertungen[Kurs],Berechnungen!$C17,TblKlassenbewertungen[Typ],Berechnungen!AE$5)*Einstellungen!G20,\"\")","v":""},{"$f":"IFERROR(AVERAGEIFS(TblKlassenbewertungen[Bewertung],TblKlassenbewertungen[Kurs],Berechnungen!$C17,TblKlassenbewertungen[Typ],Berechnungen!AF$5)*Einstellungen!H20,\"\")","v":""},{"$f":"IFERROR(AVERAGEIFS(TblKlassenbewertungen[Bewertung],TblKlassenbewertungen[Kurs],Berechnungen!$C17,TblKlassenbewertungen[Typ],Berechnungen!AG$5)*Einstellungen!I20,\"\")","v":""},{"$f":"IFERROR(AVERAGEIFS(TblKlassenbewertungen[Bewertung],TblKlassenbewertungen[Kurs],Berechnungen!$C17,TblKlassenbewertungen[Typ],Berechnungen!AH$5)*Einstellungen!J20,\"\")","v":""},{"$f":"IFERROR(AVERAGEIFS(TblKlassenbewertungen[Bewertung],TblKlassenbewertungen[Kurs],Berechnungen!$C17,TblKlassenbewertungen[Typ],Berechnungen!AI$5)*Einstellungen!K20,\"\")","v":""},0,{"$f":"SUMIFS(Einstellungen!E20:K20,Berechnungen!AC17:AI17,\">0\")","v":0},"","",""]
[null,null,{"$f":"IF(Einstellungen!C21=\"\",\"\",Einstellungen!C21)","v":""},"","","","","","","","","","","","","","","","","","","","","","","","","",{"$f":"IFERROR(AVERAGEIFS(TblKlassenbewertungen[Bewertung],TblKlassenbewertungen[Kurs],Berechnungen!$C18,TblKlassenbewertungen[Typ],Berechnungen!AC$5)*Einstellungen!E21,\"\")","v":""},{"$f":"IFERROR(AVERAGEIFS(TblKlassenbewertungen[Bewertung],TblKlassenbewertungen[Kurs],Berechnungen!$C18,TblKlassenbewertungen[Typ],Berechnungen!AD$5)*Einstellungen!F21,\"\")","v":""},{"$f":"IFERROR(AVERAGEIFS(TblKlassenbewertungen[Bewertung],TblKlassenbewertungen[Kurs],Berechnungen!$C18,TblKlassenbewertungen[Typ],Berechnungen!AE$5)*Einstellungen!G21,\"\")","v":""},{"$f":"IFERROR(AVERAGEIFS(TblKlassenbewertungen[Bewertung],TblKlassenbewertungen[Kurs],Berechnungen!$C18,TblKlassenbewertungen[Typ],Berechnungen!AF$5)*Einstellungen!H21,\"\")","v":""},{"$f":"IFERROR(AVERAGEIFS(TblKlassenbewertungen[Bewertung],TblKlassenbewertungen[Kurs],Berechnungen!$C18,TblKlassenbewertungen[Typ],Berechnungen!AG$5)*Einstellungen!I21,\"\")","v":""},{"$f":"IFERROR(AVERAGEIFS(TblKlassenbewertungen[Bewertung],TblKlassenbewertungen[Kurs],Berechnungen!$C18,TblKlassenbewertungen[Typ],Berechnungen!AH$5)*Einstellungen!J21,\"\")","v":""},{"$f":"IFERROR(AVERAGEIFS(TblKlassenbewertungen[Bewertung],TblKlassenbewertungen[Kurs],Berechnungen!$C18,TblKlassenbewertungen[Typ],Berechnungen!AI$5)*Einstellungen!K21,\"\")","v":""},0,{"$f":"SUMIFS(Einstellungen!E21:K21,Berechnungen!AC18:AI18,\">0\")","v":0},"","",""]
[null,null,{"$f":"IF(Einstellungen!C22=\"\",\"\",Einstellungen!C22)","v":""},"","","","","","","","","","","","","","","","","","","","","","","","","",{"$f":"IFERROR(AVERAGEIFS(TblKlassenbewertungen[Bewertung],TblKlassenbewertungen[Kurs],Berechnungen!$C19,TblKlassenbewertungen[Typ],Berechnungen!AC$5)*Einstellungen!E22,\"\")","v":""},{"$f":"IFERROR(AVERAGEIFS(TblKlassenbewertungen[Bewertung],TblKlassenbewertungen[Kurs],Berechnungen!$C19,TblKlassenbewertungen[Typ],Berechnungen!AD$5)*Einstellungen!F22,\"\")","v":""},{"$f":"IFERROR(AVERAGEIFS(TblKlassenbewertungen[Bewertung],TblKlassenbewertungen[Kurs],Berechnungen!$C19,TblKlassenbewertungen[Typ],Berechnungen!AE$5)*Einstellungen!G22,\"\")","v":""},{"$f":"IFERROR(AVERAGEIFS(TblKlassenbewertungen[Bewertung],TblKlassenbewertungen[Kurs],Berechnungen!$C19,TblKlassenbewertungen[Typ],Berechnungen!AF$5)*Einstellungen!H22,\"\")","v":""},{"$f":"IFERROR(AVERAGEIFS(TblKlassenbewertungen[Bewertung],TblKlassenbewertungen[Kurs],Berechnungen!$C19,TblKlassenbewertungen[Typ],Berechnungen!AG$5)*Einstellungen!I22,\"\")","v":""},{"$f":"IFERROR(AVERAGEIFS(TblKlassenbewertungen[Bewertung],TblKlassenbewertungen[Kurs],Berechnungen!$C19,TblKlassenbewertungen[Typ],Berechnungen!AH$5)*Einstellungen!J22,\"\")","v":""},{"$f":"IFERROR(AVERAGEIFS(TblKlassenbewertungen[Bewertung],TblKlassenbewertungen[Kurs],Berechnungen!$C19,TblKlassenbewertungen[Typ],Berechnungen!AI$5)*Einstellungen!K22,\"\")","v":""},0,{"$f":"SUMIFS(Einstellungen!E22:K22,Berechnungen!AC19:AI19,\">0\")","v":0},"","",""]
[null,null,{"$f":"IF(Einstellungen!C23=\"\",\"\",Einstellungen!C23)","v":""},"","","","","","","","","","","","","","","","","","","","","","","","","",{"$f":"IFERROR(AVERAGEIFS(TblKlassenbewertungen[Bewertung],TblKlassenbewertungen[Kurs],Berechnungen!$C20,TblKlassenbewertungen[Typ],Berechnungen!AC$5)*Einstellungen!E23,\"\")","v":""},{"$f":"IFERROR(AVERAGEIFS(TblKlassenbewertungen[Bewertung],TblKlassenbewertungen[Kurs],Berechnungen!$C20,TblKlassenbewertungen[Typ],Berechnungen!AD$5)*Einstellungen!F23,\"\")","v":""},{"$f":"IFERROR(AVERAGEIFS(TblKlassenbewertungen[Bewertung],TblKlassenbewertungen[Kurs],Berechnungen!$C20,TblKlassenbewertungen[Typ],Berechnungen!AE$5)*Einstellungen!G23,\"\")","v":""},{"$f":"IFERROR(AVERAGEIFS(TblKlassenbewertungen[Bewertung],TblKlassenbewertungen[Kurs],Berechnungen!$C20,TblKlassenbewertungen[Typ],Berechnungen!AF$5)*Einstellungen!H23,\"\")","v":""},{"$f":"IFERROR(AVERAGEIFS(TblKlassenbewertungen[Bewertung],TblKlassenbewertungen[Kurs],Berechnungen!$C20,TblKlassenbewertungen[Typ],Berechnungen!AG$5)*Einstellungen!I23,\"\")","v":""},{"$f":"IFERROR(AVERAGEIFS(TblKlassenbewertungen[Bewertung],TblKlassenbewertungen[Kurs],Berechnungen!$C20,TblKlassenbewertungen[Typ],Berechnungen!AH$5)*Einstellungen!J23,\"\")","v":""},{"$f":"IFERROR(AVERAGEIFS(TblKlassenbewertungen[Bewertung],TblKlassenbewertungen[Kurs],Berechnungen!$C20,TblKlassenbewertungen[Typ],Berechnungen!AI$5)*Einstellungen!K23,\"\")","v":""},0,{"$f":"SUMIFS(Einstellungen!E23:K23,Berechnungen!AC20:AI20,\">0\")","v":0},"","",""]
[null,null,{"$f":"IF(Einstellungen!C24=\"\",\"\",Einstellungen!C24)","v":""},"","","","","","","","","","","","","","","","","","","","","","","","","",{"$f":"IFERROR(AVERAGEIFS(TblKlassenbewertungen[Bewertung],TblKlassenbewertungen[Kurs],Berechnungen!$C21,TblKlassenbewertungen[Typ],Berechnungen!AC$5)*Einstellungen!E24,\"\")","v":""},{"$f":"IFERROR(AVERAGEIFS(TblKlassenbewertungen[Bewertung],TblKlassenbewertungen[Kurs],Berechnungen!$C21,TblKlassenbewertungen[Typ],Berechnungen!AD$5)*Einstellungen!F24,\"\")","v":""},{"$f":"IFERROR(AVERAGEIFS(TblKlassenbewertungen[Bewertung],TblKlassenbewertungen[Kurs],Berechnungen!$C21,TblKlassenbewertungen[Typ],Berechnungen!AE$5)*Einstellungen!G24,\"\")","v":""},{"$f":"IFERROR(AVERAGEIFS(TblKlassenbewertungen[Bewertung],TblKlassenbewertungen[Kurs],Berechnungen!$C21,TblKlassenbewertungen[Typ],Berechnungen!AF$5)*Einstellungen!H24,\"\")","v":""},{"$f":"IFERROR(AVERAGEIFS(TblKlassenbewertungen[Bewertung],TblKlassenbewertungen[Kurs],Berechnungen!$C21,TblKlassenbewertungen[Typ],Berechnungen!AG$5)*Einstellungen!I24,\"\")","v":""},{"$f":"IFERROR(AVERAGEIFS(TblKlassenbewertungen[Bewertung],TblKlassenbewertungen[Kurs],Berechnungen!$C21,TblKlassenbewertungen[Typ],Berechnungen!AH$5)*Einstellungen!J24,\"\")","v":""},{"$f":"IFERROR(AVERAGEIFS(TblKlassenbewertungen[Bewertung],TblKlassenbewertungen[Kurs],Berechnungen!$C21,TblKlassenbewertungen[Typ],Berechnungen!AI$5)*Einstellungen!K24,\"\")","v":""},0,{"$f":"SUMIFS(Einstellungen!E24:K24,Berechnungen!AC21:AI21,\">0\")","v":0},"","",""]
[null,null,{"$f":"IF(Einstellungen!C25=\"\",\"\",Einstellungen!C25)","v":""},"","","","","","","","","","","","","","","","","","","","","","","","","",{"$f":"IFERROR(AVERAGEIFS(TblKlassenbewertungen[Bewertung],TblKlassenbewertungen[Kurs],Berechnungen!$C22,TblKlassenbewertungen[Typ],Berechnungen!AC$5)*Einstellungen!E25,\"\")","v":""},{"$f":"IFERROR(AVERAGEIFS(TblKlassenbewertungen[Bewertung],TblKlassenbewertungen[Kurs],Berechnungen!$C22,TblKlassenbewertungen[Typ],Berechnungen!AD$5)*Einstellungen!F25,\"\")","v":""},{"$f":"IFERROR(AVERAGEIFS(TblKlassenbewertungen[Bewertung],TblKlassenbewertungen[Kurs],Berechnungen!$C22,TblKlassenbewertungen[Typ],Berechnungen!AE$5)*Einstellungen!G25,\"\")","v":""},{"$f":"IFERROR(AVERAGEIFS(TblKlassenbewertungen[Bewertung],TblKlassenbewertungen[Kurs],Berechnungen!$C22,TblKlassenbewertungen[Typ],Berechnungen!AF$5)*Einstellungen!H25,\"\")","v":""},{"$f":"IFERROR(AVERAGEIFS(TblKlassenbewertungen[Bewertung],TblKlassenbewertungen[Kurs],Berechnungen!$C22,TblKlassenbewertungen[Typ],Berechnungen!AG$5)*Einstellungen!I25,\"\")","v":""},{"$f":"IFERROR(AVERAGEIFS(TblKlassenbewertungen[Bewertung],TblKlassenbewertungen[Kurs],Berechnungen!$C22,TblKlassenbewertungen[Typ],Berechnungen!AH$5)*Einstellungen!J25,\"\")","v":""},{"$f":"IFERROR(AVERAGEIFS(TblKlassenbewertungen[Bewertung],TblKlassenbewertungen[Kurs],Berechnungen!$C22,TblKlassenbewertungen[Typ],Berechnungen!AI$5)*Einstellungen!K25,\"\")","v":""},0,{"$f":"SUMIFS(Einstellungen!E25:K25,Berechnungen!AC22:AI22,\">0\")","v":0},"","",""]
[null,null,{"$f":"IF(Einstellungen!C26=\"\",\"\",Einstellungen!C26)","v":""},"","","","","","","","","","","","","","","","","","","","","","","","","",{"$f":"IFERROR(AVERAGEIFS(TblKlassenbewertungen[Bewertung],TblKlassenbewertungen[Kurs],Berechnungen!$C23,TblKlassenbewertungen[Typ],Berechnungen!AC$5)*Einstellungen!E26,\"\")","v":""},{"$f":"IFERROR(AVERAGEIFS(TblKlassenbewertungen[Bewertung],TblKlassenbewertungen[Kurs],Berechnungen!$C23,TblKlassenbewertungen[Typ],Berechnungen!AD$5)*Einstellungen!F26,\"\")","v":""},{"$f":"IFERROR(AVERAGEIFS(TblKlassenbewertungen[Bewertung],TblKlassenbewertungen[Kurs],Berechnungen!$C23,TblKlassenbewertungen[Typ],Berechnungen!AE$5)*Einstellungen!G26,\"\")","v":""},{"$f":"IFERROR(AVERAGEIFS(TblKlassenbewertungen[Bewertung],TblKlassenbewertungen[Kurs],Berechnungen!$C23,TblKlassenbewertungen[Typ],Berechnungen!AF$5)*Einstellungen!H26,\"\")","v":""},{"$f":"IFERROR(AVERAGEIFS(TblKlassenbewertungen[Bewertung],TblKlassenbewertungen[Kurs],Berechnungen!$C23,TblKlassenbewertungen[Typ],Berechnungen!AG$5)*Einstellungen!I26,\"\")","v":""},{"$f":"IFERROR(AVERAGEIFS(TblKlassenbewertungen[Bewertung],TblKlassenbewertungen[Kurs],Berechnungen!$C23,TblKlassenbewertungen[Typ],Berechnungen!AH$5)*Einstellungen!J26,\"\")","v":""},{"$f":"IFERROR(AVERAGEIFS(TblKlassenbewertungen[Bewertung],TblKlassenbewertungen[Kurs],Berechnungen!$C23,TblKlassenbewertungen[Typ],Berechnungen!AI$5)*Einstellungen!K26,\"\")","v":""},0,{"$f":"SUMIFS(Einstellungen!E26:K26,Berechnungen!AC23:AI23,\">0\")","v":0},"","",""]
[null,null,{"$f":"IF(Einstellungen!C27=\"\",\"\",Einstellungen!C27)","v":""},"","","","","","","","","","","","","","","","","","","","","","","","","",{"$f":"IFERROR(AVERAGEIFS(TblKlassenbewertungen[Bewertung],TblKlassenbewertungen[Kurs],Berechnungen!$C24,TblKlassenbewertungen[Typ],Berechnungen!AC$5)*Einstellungen!E27,\"\")","v":""},{"$f":"IFERROR(AVERAGEIFS(TblKlassenbewertungen[Bewertung],TblKlassenbewertungen[Kurs],Berechnungen!$C24,TblKlassenbewertungen[Typ],Berechnungen!AD$5)*Einstellungen!F27,\"\")","v":""},{"$f":"IFERROR(AVERAGEIFS(TblKlassenbewertungen[Bewertung],TblKlassenbewertungen[Kurs],Berechnungen!$C24,TblKlassenbewertungen[Typ],Berechnungen!AE$5)*Einstellungen!G27,\"\")","v":""},{"$f":"IFERROR(AVERAGEIFS(TblKlassenbewertungen[Bewertung],TblKlassenbewertungen[Kurs],Berechnungen!$C24,TblKlassenbewertungen[Typ],Berechnungen!AF$5)*Einstellungen!H27,\"\")","v":""},{"$f":"IFERROR(AVERAGEIFS(TblKlassenbewertungen[Bewertung],TblKlassenbewertungen[Kurs],Berechnungen!$C24,TblKlassenbewertungen[Typ],Berechnungen!AG$5)*Einstellungen!I27,\"\")","v":""},{"$f":"IFERROR(AVERAGEIFS(TblKlassenbewertungen[Bewertung],TblKlassenbewertungen[Kurs],Berechnungen!$C24,TblKlassenbewertungen[Typ],Berechnungen!AH$5)*Einstellungen!J27,\"\")","v":""},{"$f":"IFERROR(AVERAGEIFS(TblKlassenbewertungen[Bewertung],TblKlassenbewertungen[Kurs],Berechnungen!$C24,TblKlassenbewertungen[Typ],Berechnungen!AI$5)*Einstellungen!K27,\"\")","v":""},0,{"$f":"SUMIFS(Einstellungen!E27:K27,Berechnungen!AC24:AI24,\">0\")","v":0},"","",""]
[null,null,{"$f":"IF(Einstellungen!C28=\"\",\"\",Einstellungen!C28)","v":""},"","","","","","","","","","","","","","","","","","","","","","","","","",{"$f":"IFERROR(AVERAGEIFS(TblKlassenbewertungen[Bewertung],TblKlassenbewertungen[Kurs],Berechnungen!$C25,TblKlassenbewertungen[Typ],Berechnungen!AC$5)*Einstellungen!E28,\"\")","v":""},{"$f":"IFERROR(AVERAGEIFS(TblKlassenbewertungen[Bewertung],TblKlassenbewertungen[Kurs],Berechnungen!$C25,TblKlassenbewertungen[Typ],Berechnungen!AD$5)*Einstellungen!F28,\"\")","v":""},{"$f":"IFERROR(AVERAGEIFS(TblKlassenbewertungen[Bewertung],TblKlassenbewertungen[Kurs],Berechnungen!$C25,TblKlassenbewertungen[Typ],Berechnungen!AE$5)*Einstellungen!G28,\"\")","v":""},{"$f":"IFERROR(AVERAGEIFS(TblKlassenbewertungen[Bewertung],TblKlassenbewertungen[Kurs],Berechnungen!$C25,TblKlassenbewertungen[Typ],Berechnungen!AF$5)*Einstellungen!H28,\"\")","v":""},{"$f":"IFERROR(AVERAGEIFS(TblKlassenbewertungen[Bewertung],TblKlassenbewertungen[Kurs],Berechnungen!$C25,TblKlassenbewertungen[Typ],Berechnungen!AG$5)*Einstellungen!I28,\"\")","v":""},{"$f":"IFERROR(AVERAGEIFS(TblKlassenbewertungen[Bewertung],TblKlassenbewertungen[Kurs],Berechnungen!$C25,TblKlassenbewertungen[Typ],Berechnungen!AH$5)*Einstellungen!J28,\"\")","v":""},{"$f":"IFERROR(AVERAGEIFS(TblKlassenbewertungen[Bewertung],TblKlassenbewertungen[Kurs],Berechnungen!$C25,TblKlassenbewertungen[Typ],Berechnungen!AI$5)*Einstellungen!K28,\"\")","v":""},0,{"$f":"SUMIFS(Einstellungen!E28:K28,Berechnungen!AC25:AI25,\">0\")","v":0},"","",""]
[null,null,{"$f":"IF(Einstellungen!C29=\"\",\"\",Einstellungen!C29)","v":""},"","","","","","","","","","","","","","","","","","","","","","","","","",{"$f":"IFERROR(AVERAGEIFS(TblKlassenbewertungen[Bewertung],TblKlassenbewertungen[Kurs],Berechnungen!$C26,TblKlassenbewertungen[Typ],Berechnungen!AC$5)*Einstellungen!E29,\"\")","v":""},{"$f":"IFERROR(AVERAGEIFS(TblKlassenbewertungen[Bewertung],TblKlassenbewertungen[Kurs],Berechnungen!$C26,TblKlassenbewertungen[Typ],Berechnungen!AD$5)*Einstellungen!F29,\"\")","v":""},{"$f":"IFERROR(AVERAGEIFS(TblKlassenbewertungen[Bewertung],TblKlassenbewertungen[Kurs],Berechnungen!$C26,TblKlassenbewertungen[Typ],Berechnungen!AE$5)*Einstellungen!G29,\"\")","v":""},{"$f":"IFERROR(AVERAGEIFS(TblKlassenbewertungen[Bewertung],TblKlassenbewertungen[Kurs],Berechnungen!$C26,TblKlassenbewertungen[Typ],Berechnungen!AF$5)*Einstellungen!H29,\"\")","v":""},{"$f":"IFERROR(AVERAGEIFS(TblKlassenbewertungen[Bewertung],TblKlassenbewertungen[Kurs],Berechnungen!$C26,TblKlassenbewertungen[Typ],Berechnungen!AG$5)*Einstellungen!I29,\"\")","v":""},{"$f":"IFERROR(AVERAGEIFS(TblKlassenbewertungen[Bewertung],TblKlassenbewertungen[Kurs],Berechnungen!$C26,TblKlassenbewertungen[Typ],Berechnungen!AH$5)*Einstellungen!J29,\"\")","v":""},{"$f":"IFERROR(AVERAGEIFS(TblKlassenbewertungen[Bewertung],TblKlassenbewertungen[Kurs],Berechnungen!$C26,TblKlassenbewertungen[Typ],Berechnungen!AI$5)*Einstellungen!K29,\"\")","v":""},0,{"$f":"SUMIFS(Einstellungen!E29:K29,Berechnungen!AC26:AI26,\">0\")","v":0},"","",""]
[null,null,{"$f":"IF(Einstellungen!C30=\"\",\"\",Einstellungen!C30)","v":""},"","","","","","","","","","","","","","","","","","","","","","","","","",{"$f":"IFERROR(AVERAGEIFS(TblKlassenbewertungen[Bewertung],TblKlassenbewertungen[Kurs],Berechnungen!$C27,TblKlassenbewertungen[Typ],Berechnungen!AC$5)*Einstellungen!E30,\"\")","v":""},{"$f":"IFERROR(AVERAGEIFS(TblKlassenbewertungen[Bewertung],TblKlassenbewertungen[Kurs],Berechnungen!$C27,TblKlassenbewertungen[Typ],Berechnungen!AD$5)*Einstellungen!F30,\"\")","v":""},{"$f":"IFERROR(AVERAGEIFS(TblKlassenbewertungen[Bewertung],TblKlassenbewertungen[Kurs],Berechnungen!$C27,TblKlassenbewertungen[Typ],Berechnungen!AE$5)*Einstellungen!G30,\"\")","v":""},{"$f":"IFERROR(AVERAGEIFS(TblKlassenbewertungen[Bewertung],TblKlassenbewertungen[Kurs],Berechnungen!$C27,TblKlassenbewertungen[Typ],Berechnungen!AF$5)*Einstellungen!H30,\"\")","v":""},{"$f":"IFERROR(AVERAGEIFS(TblKlassenbewertungen[Bewertung],TblKlassenbewertungen[Kurs],Berechnungen!$C27,TblKlassenbewertungen[Typ],Berechnungen!AG$5)*Einstellungen!I30,\"\")","v":""},{"$f":"IFERROR(AVERAGEIFS(TblKlassenbewertungen[Bewertung],TblKlassenbewertungen[Kurs],Berechnungen!$C27,TblKlassenbewertungen[Typ],Berechnungen!AH$5)*Einstellungen!J30,\"\")","v":""},{"$f":"IFERROR(AVERAGEIFS(TblKlassenbewertungen[Bewertung],TblKlassenbewertungen[Kurs],Berechnungen!$C27,TblKlassenbewertungen[Typ],Berechnungen!AI$5)*Einstellungen!K30,\"\")","v":""},0,{"$f":"SUMIFS(Einstellungen!E30:K30,Berechnungen!AC27:AI27,\">0\")","v":0},"","",""]
[null,null,{"$f":"IF(Einstellungen!C31=\"\",\"\",Einstellungen!C31)","v":""},"","","","","","","","","","","","","","","","","","","","","","","","","",{"$f":"IFERROR(AVERAGEIFS(TblKlassenbewertungen[Bewertung],TblKlassenbewertungen[Kurs],Berechnungen!$C28,TblKlassenbewertungen[Typ],Berechnungen!AC$5)*Einstellungen!E31,\"\")","v":""},{"$f":"IFERROR(AVERAGEIFS(TblKlassenbewertungen[Bewertung],TblKlassenbewertungen[Kurs],Berechnungen!$C28,TblKlassenbewertungen[Typ],Berechnungen!AD$5)*Einstellungen!F31,\"\")","v":""},{"$f":"IFERROR(AVERAGEIFS(TblKlassenbewertungen[Bewertung],TblKlassenbewertungen[Kurs],Berechnungen!$C28,TblKlassenbewertungen[Typ],Berechnungen!AE$5)*Einstellungen!G31,\"\")","v":""},{"$f":"IFERROR(AVERAGEIFS(TblKlassenbewertungen[Bewertung],TblKlassenbewertungen[Kurs],Berechnungen!$C28,TblKlassenbewertungen[Typ],Berechnungen!AF$5)*Einstellungen!H31,\"\")","v":""},{"$f":"IFERROR(AVERAGEIFS(TblKlassenbewertungen[Bewertung],TblKlassenbewertungen[Kurs],Berechnungen!$C28,TblKlassenbewertungen[Typ],Berechnungen!AG$5)*Einstellungen!I31,\"\")","v":""},{"$f":"IFERROR(AVERAGEIFS(TblKlassenbewertungen[Bewertung],TblKlassenbewertungen[Kurs],Berechnungen!$C28,TblKlassenbewertungen[Typ],Berechnungen!AH$5)*Einstellungen!J31,\"\")","v":""},{"$f":"IFERROR(AVERAGEIFS(TblKlassenbewertungen[Bewertung],TblKlassenbewertungen[Kurs],Berechnungen!$C28,TblKlassenbewertungen[Typ],Berechnungen!AI$5)*Einstellungen!K31,\"\")","v":""},0,{"$f":"SUMIFS(Einstellungen!E31:K31,Berechnungen!AC28:AI28,\">0\")","v":0},"","",""]
[null,null,{"$f":"IF(Einstellungen!C32=\"\",\"\",Einstellungen!C32)","v":""},"","","","","","","","","","","","","","","","","","","","","","","","","",{"$f":"IFERROR(AVERAGEIFS(TblKlassenbewertungen[Bewertung],TblKlassenbewertungen[Kurs],Berechnungen!$C29,TblKlassenbewertungen[Typ],Berechnungen!AC$5)*Einstellungen!E32,\"\")","v":""},{"$f":"IFERROR(AVERAGEIFS(TblKlassenbewertungen[Bewertung],TblKlassenbewertungen[Kurs],Berechnungen!$C29,TblKlassenbewertungen[Typ],Berechnungen!AD$5)*Einstellungen!F32,\"\")","v":""},{"$f":"IFERROR(AVERAGEIFS(TblKlassenbewertungen[Bewertung],TblKlassenbewertungen[Kurs],Berechnungen!$C29,TblKlassenbewertungen[Typ],Berechnungen!AE$5)*Einstellungen!G32,\"\")","v":""},{"$f":"IFERROR(AVERAGEIFS(TblKlassenbewertungen[Bewertung],TblKlassenbewertungen[Kurs],Berechnungen!$C29,TblKlassenbewertungen[Typ],Berechnungen!AF$5)*Einstellungen!H32,\"\")","v":""},{"$f":"IFERROR(AVERAGEIFS(TblKlassenbewertungen[Bewertung],TblKlassenbewertungen[Kurs],Berechnungen!$C29,TblKlassenbewertungen[Typ],Berechnungen!AG$5)*Einstellungen!I32,\"\")","v":""},{"$f":"IFERROR(AVERAGEIFS(TblKlassenbewertungen[Bewertung],TblKlassenbewertungen[Kurs],Berechnungen!$C29,TblKlassenbewertungen[Typ],Berechnungen!AH$5)*Einstellungen!J32,\"\")","v":""},{"$f":"IFERROR(AVERAGEIFS(TblKlassenbewertungen[Bewertung],TblKlassenbewertungen[Kurs],Berechnungen!$C29,TblKlassenbewertungen[Typ],Berechnungen!AI$5)*Einstellungen!K32,\"\")","v":""},0,{"$f":"SUMIFS(Einstellungen!E32:K32,Berechnungen!AC29:AI29,\">0\")","v":0},"","",""]
[null,null,{"$f":"IF(Einstellungen!C33=\"\",\"\",Einstellungen!C33)","v":""},"","","","","","","","","","","","","","","","","","","","","","","","","",{"$f":"IFERROR(AVERAGEIFS(TblKlassenbewertungen[Bewertung],TblKlassenbewertungen[Kurs],Berechnungen!$C30,TblKlassenbewertungen[Typ],Berechnungen!AC$5)*Einstellungen!E33,\"\")","v":""},{"$f":"IFERROR(AVERAGEIFS(TblKlassenbewertungen[Bewertung],TblKlassenbewertungen[Kurs],Berechnungen!$C30,TblKlassenbewertungen[Typ],Berechnungen!AD$5)*Einstellungen!F33,\"\")","v":""},{"$f":"IFERROR(AVERAGEIFS(TblKlassenbewertungen[Bewertung],TblKlassenbewertungen[Kurs],Berechnungen!$C30,TblKlassenbewertungen[Typ],Berechnungen!AE$5)*Einstellungen!G33,\"\")","v":""},{"$f":"IFERROR(AVERAGEIFS(TblKlassenbewertungen[Bewertung],TblKlassenbewertungen[Kurs],Berechnungen!$C30,TblKlassenbewertungen[Typ],Berechnungen!AF$5)*Einstellungen!H33,\"\")","v":""},{"$f":"IFERROR(AVERAGEIFS(TblKlassenbewertungen[Bewertung],TblKlassenbewertungen[Kurs],Berechnungen!$C30,TblKlassenbewertungen[Typ],Berechnungen!AG$5)*Einstellungen!I33,\"\")","v":""},{"$f":"IFERROR(AVERAGEIFS(TblKlassenbewertungen[Bewertung],TblKlassenbewertungen[Kurs],Berechnungen!$C30,TblKlassenbewertungen[Typ],Berechnungen!AH$5)*Einstellungen!J33,\"\")","v":""},{"$f":"IFERROR(AVERAGEIFS(TblKlassenbewertungen[Bewertung],TblKlassenbewertungen[Kurs],Berechnungen!$C30,TblKlassenbewertungen[Typ],Berechnungen!AI$5)*Einstellungen!K33,\"\")","v":""},0,{"$f":"SUMIFS(Einstellungen!E33:K33,Berechnungen!AC30:AI30,\">0\")","v":0},"","",""]
[]
[]
[null,1,{"$f":"Bewertungserfassung!C4&COUNTIF(Bewertungserfassung!$C$4:C4,Bewertungserfassung!C4)","v":"Französisch1"}]
[null,2,{"$f":"Bewertungserfassung!C5&COUNTIF(Bewertungserfassung!$C$4:C5,Bewertungserfassung!C5)","v":"Programmierung in Java - Fortgeschrittene1"}]
[null,3,{"$f":"Bewertungserfassung!C6&COUNTIF(Bewertungserfassung!$C$4:C6,Bewertungserfassung!C6)","v":"Spanisch1"}]
[null,4,{"$f":"Bewertungserfassung!C7&COUNTIF(Bewertungserfassung!$C$4:C7,Bewertungserfassung!C7)","v":"Theoretische Physik1"}]
[null,5,{"$f":"Bewertungserfassung!C8&COUNTIF(Bewertungserfassung!$C$4:C8,Bewertungserfassung!C8)","v":"Französisch2"}]
[null,6,{"$f":"Bewertungserfassung!C9&COUNTIF(Bewertungserfassung!$C$4:C9,Bewertungserfassung!C9)","v":"Französisch3"}]
[null,7,{"$f":"Bewertungserfassung!C10&COUNTIF(Bewertungserfassung!$C$4:C10,Bewertungserfassung!C10)","v":"Freies Schreiben1"}]
[null,8,{"$f":"Bewertungserfassung!C11&COUNTIF(Bewertungserfassung!$C$4:C11,Bewertungserfassung!C11)","v":"Mathematik 11"}]
[null,9,{"$f":"Bewertungserfassung!C12&COUNTIF(Bewertungserfassung!$C$4:C12,Bewertungserfassung!C12)","v":"Mathematik 21"}]
[null,10,{"$f":"Bewertungserfassung!C13&COUNTIF(Bewertungserfassung!$C$4:C13,Bewertungserfassung!C13)","v":"Mathematik 12"}]
[null,11,{"$f":"Bewertungserfassung!C14&COUNTIF(Bewertungserfassung!$C$4:C14,Bewertungserfassung!C14)","v":"Mathematik 22"}]
[null,12,{"$f":"Bewertungserfassung!C15&COUNTIF(Bewertungserfassung!$C$4:C15,Bewertungserfassung!C15)","v":"0"}]
[null,13,{"$f":"Bewertungserfassung!C16&COUNTIF(Bewertungserfassung!$C$4:C16,Bewertungserfassung!C16)","v":"0"}]
[null,14,{"$f":"Bewertungserfassung!C17&COUNTIF(Bewertungserfassung!$C$4:C17,Bewertungserfassung!C17)","v":"0"}]
[null,15,{"$f":"Bewertungserfassung!C18&COUNTIF(Bewertungserfassung!$C$4:C18,Bewertungserfassung!C18)","v":"0"}]
[null,16,{"$f":"Bewertungserfassung!C19&COUNTIF(Bewertungserfassung!$C$4:C19,Bewertungserfassung!C19)","v":"0"}]
[null,17,{"$f":"Bewertungserfassung!C20&COUNTIF(Bewertungserfassung!$C$4:C20,Bewertungserfassung!C20)","v":"0"}]
[null,18,{"$f":"Bewertungserfassung!C21&COUNTIF(Bewertungserfassung!$C$4:C21,Bewertungserfassung!C21)","v":"0"}]
[null,19,{"$f":"Bewertungserfassung!C22&COUNTIF(Bewertungserfassung!$C$4:C22,Bewertungserfassung!C22)","v":"0"}]
[null,20,{"$f":"Bewertungserfassung!C23&COUNTIF(Bewertungserfassung!$C$4:C23,Bewertungserfassung!C23)","v":"0"}]
[null,21,{"$f":"Bewertungserfassung!C24&COUNTIF(Bewertungserfassung!$C$4:C24,Bewertungserfassung!C24)","v":"0"}]
[null,22,{"$f":"Bewertungserfassung!C25&COUNTIF(Bewertungserfassung!$C$4:C25,Bewertungserfassung!C25)","v":"0"}]
[null,23,{"$f":"Bewertungserfassung!C26&COUNTIF(Bewertungserfassung!$C$4:C26,Bewertungserfassung!C26)","v":"0"}]
[null,24,{"$f":"Bewertungserfassung!C27&COUNTIF(Bewertungserfassung!$C$4:C27,Bewertungserfassung!C27)","v":"0"}]
[null,25,{"$f":"Bewertungserfassung!C28&COUNTIF(Bewertungserfassung!$C$4:C28,Bewertungserfassung!C28)","v":"0"}]
[null,26,{"$f":"Bewertungserfassung!C29&COUNTIF(Bewertungserfassung!$C$4:C29,Bewertungserfassung!C29)","v":"0"}]
[null,27,{"$f":"Bewertungserfassung!C30&COUNTIF(Bewertungserfassung!$C$4:C30,Bewertungserfassung!C30)","v":"0"}]
[null,28,{"$f":"Bewertungserfassung!C31&COUNTIF(Bewertungserfassung!$C$4:C31,Bewertungserfassung!C31)","v":"0"}]
[null,29,{"$f":"Bewertungserfassung!C32&COUNTIF(Bewertungserfassung!$C$4:C32,Bewertungserfassung!C32)","v":"0"}]
[null,30,{"$f":"Bewertungserfassung!C33&COUNTIF(Bewertungserfassung!$C$4:C33,Bewertungserfassung!C33)","v":"0"}]
[null,31,{"$f":"Bewertungserfassung!C34&COUNTIF(Bewertungserfassung!$C$4:C34,Bewertungserfassung!C34)","v":"0"}]
[null,32,{"$f":"Bewertungserfassung!C35&COUNTIF(Bewertungserfassung!$C$4:C35,Bewertungserfassung!C35)","v":"0"}]
[null,33,{"$f":"Bewertungserfassung!C36&COUNTIF(Bewertungserfassung!$C$4:C36,Bewertungserfassung!C36)","v":"0"}]
[null,34,{"$f":"Bewertungserfassung!C37&COUNTIF(Bewertungserfassung!$C$4:C37,Bewertungserfassung!C37)","v":"0"}]
[null,35,{"$f":"Bewertungserfassung!C38&COUNTIF(Bewertungserfassung!$C$4:C38,Bewertungserfassung!C38)","v":"0"}]
[null,36,{"$f":"Bewertungserfassung!C39&COUNTIF(Bewertungserfassung!$C$4:C39,Bewertungserfassung!C39)","v":"0"}]
[null,37,{"$f":"Bewertungserfassung!C40&COUNTIF(Bewertungserfassung!$C$4:C40,Bewertungserfassung!C40)","v":"0"}]
[null,38,{"$f":"Bewertungserfassung!C41&COUNTIF(Bewertungserfassung!$C$4:C41,Bewertungserfassung!C41)","v":"0"}]
[null,39,{"$f":"Bewertungserfassung!C42&COUNTIF(Bewertungserfassung!$C$4:C42,Bewertungserfassung!C42)","v":"0"}]
[null,40,{"$f":"Bewertungserfassung!C43&COUNTIF(Bewertungserfassung!$C$4:C43,Bewertungserfassung!C43)","v":"0"}]
[null,41,{"$f":"Bewertungserfassung!C44&COUNTIF(Bewertungserfassung!$C$4:C44,Bewertungserfassung!C44)","v":"0"}]
[null,42,{"$f":"Bewertungserfassung!C45&COUNTIF(Bewertungserfassung!$C$4:C45,Bewertungserfassung!C45)","v":"0"}]
[null,43,{"$f":"Bewertungserfassung!C46&COUNTIF(Bewertungserfassung!$C$4:C46,Bewertungserfassung!C46)","v":"0"}]
[null,44,{"$f":"Bewertungserfassung!C47&COUNTIF(Bewertungserfassung!$C$4:C47,Bewertungserfassung!C47)","v":"0"}]
[null,45,{"$f":"Bewertungserfassung!C48&COUNTIF(Bewertungserfassung!$C$4:C48,Bewertungserfassung!C48)","v":"0"}]
[null,46,{"$f":"Bewertungserfassung!C49&COUNTIF(Bewertungserfassung!$C$4:C49,Bewertungserfassung!C49)","v":"0"}]
[null,47,{"$f":"Bewertungserfassung!C50&COUNTIF(Bewertungserfassung!$C$4:C50,Bewertungserfassung!C50)","v":"0"}]
[null,48,{"$f":"Bewertungserfassung!C51&COUNTIF(Bewertungserfassung!$C$4:C51,Bewertungserfassung!C51)","v":"0"}]
[null,49,{"$f":"Bewertungserfassung!C52&COUNTIF(Bewertungserfassung!$C$4:C52,Bewertungserfassung!C52)","v":"0"}]
[null,50,{"$f":"Bewertungserfassung!C53&COUNTIF(Bewertungserfassung!$C$4:C53,Bewertungserfassung!C53)","v":"0"}]
[null,51,{"$f":"Bewertungserfassung!C54&COUNTIF(Bewertungserfassung!$C$4:C54,Bewertungserfassung!C54)","v":"0"}]
[null,52,{"$f":"Bewertungserfassung!C55&COUNTIF(Bewertungserfassung!$C$4:C55,Bewertungserfassung!C55)","v":"0"}]
[null,53,{"$f":"Bewertungserfassung!C56&COUNTIF(Bewertungserfassung!$C$4:C56,Bewertungserfassung!C56)","v":"0"}]
[null,54,{"$f":"Bewertungserfassung!C57&COUNTIF(Bewertungserfassung!$C$4:C57,Bewertungserfassung!C57)","v":"0"}]
[null,55,{"$f":"Bewertungserfassung!C58&COUNTIF(Bewertungserfassung!$C$4:C58,Bewertungserfassung!C58)","v":"0"}]
[null,56,{"$f":"Bewertungserfassung!C59&COUNTIF(Bewertungserfassung!$C$4:C59,Bewertungserfassung!C59)","v":"0"}]
[null,57,{"$f":"Bewertungserfassung!C60&COUNTIF(Bewertungserfassung!$C$4:C60,Bewertungserfassung!C60)","v":"0"}]
[null,58,{"$f":"Bewertungserfassung!C61&COUNTIF(Bewertungserfassung!$C$4:C61,Bewertungserfassung!C61)","v":"0"}]
[null,59,{"$f":"Bewertungserfassung!C62&COUNTIF(Bewertungserfassung!$C$4:C62,Bewertungserfassung!C62)","v":"0"}]
[null,60,{"$f":"Bewertungserfassung!C63&COUNTIF(Bewertungserfassung!$C$4:C63,Bewertungserfassung!C63)","v":"0"}]
[null,61,{"$f":"Bewertungserfassung!C64&COUNTIF(Bewertungserfassung!$C$4:C64,Bewertungserfassung!C64)","v":"0"}]
[null,62,{"$f":"Bewertungserfassung!C65&COUNTIF(Bewertungserfassung!$C$4:C65,Bewertungserfassung!C65)","v":"0"}]
[null,63,{"$f":"Bewertungserfassung!C66&COUNTIF(Bewertungserfassung!$C$4:C66,Bewertungserfassung!C66)","v":"0"}]
[null,64,{"$f":"Bewertungserfassung!C67&COUNTIF(Bewertungserfassung!$C$4:C67,Bewertungserfassung!C67)","v":"0"}]
[null,65,{"$f":"Bewertungserfassung!C68&COUNTIF(Bewertungserfassung!$C$4:C68,Bewertungserfassung!C68)","v":"0"}]
[null,66,{"$f":"Bewertungserfassung!C69&COUNTIF(Bewertungserfassung!$C$4:C69,Bewertungserfassung!C69)","v":"0"}]
[null,67,{"$f":"Bewertungserfassung!C70&COUNTIF(Bewertungserfassung!$C$4:C70,Bewertungserfassung!C70)","v":"0"}]
[null,68,{"$f":"Bewertungserfassung!C71&COUNTIF(Bewertungserfassung!$C$4:C71,Bewertungserfassung!C71)","v":"0"}]
[null,69,{"$f":"Bewertungserfassung!C72&COUNTIF(Bewertungserfassung!$C$4:C72,Bewertungserfassung!C72)","v":"0"}]
[null,70,{"$f":"Bewertungserfassung!C73&COUNTIF(Bewertungserfassung!$C$4:C73,Bewertungserfassung!C73)","v":"0"}]
[null,71,{"$f":"Bewertungserfassung!C74&COUNTIF(Bewertungserfassung!$C$4:C74,Bewertungserfassung!C74)","v":"0"}]
[null,72,{"$f":"Bewertungserfassung!C75&COUNTIF(Bewertungserfassung!$C$4:C75,Bewertungserfassung!C75)","v":"0"}]
[null,73,{"$f":"Bewertungserfassung!C76&COUNTIF(Bewertungserfassung!$C$4:C76,Bewertungserfassung!C76)","v":"0"}]
[null,74,{"$f":"Bewertungserfassung!C77&COUNTIF(Bewertungserfassung!$C$4:C77,Bewertungserfassung!C77)","v":"0"}]
[null,75,{"$f":"Bewertungserfassung!C78&COUNTIF(Bewertungserfassung!$C$4:C78,Bewertungserfassung!C78)","v":"0"}]
[null,76,{"$f":"Bewertungserfassung!C79&COUNTIF(Bewertungserfassung!$C$4:C79,Bewertungserfassung!C79)","v":"0"}]
[null,77,{"$f":"Bewertungserfassung!C80&COUNTIF(Bewertungserfassung!$C$4:C80,Bewertungserfassung!C80)","v":"0"}]
[null,78,{"$f":"Bewertungserfassung!C81&COUNTIF(Bewertungserfassung!$C$4:C81,Bewertungserfassung!C81)","v":"0"}]
[null,79,{"$f":"Bewertungserfassung!C82&COUNTIF(Bewertungserfassung!$C$4:C82,Bewertungserfassung!C82)","v":"0"}]
[null,80,{"$f":"Bewertungserfassung!C83&COUNTIF(Bewertungserfassung!$C$4:C83,Bewertungserfassung!C83)","v":"0"}]
[null,81,{"$f":"Bewertungserfassung!C84&COUNTIF(Bewertungserfassung!$C$4:C84,Bewertungserfassung!C84)","v":"0"}]
[null,82,{"$f":"Bewertungserfassung!C85&COUNTIF(Bewertungserfassung!$C$4:C85,Bewertungserfassung!C85)","v":"0"}]
[null,83,{"$f":"Bewertungserfassung!C86&COUNTIF(Bewertungserfassung!$C$4:C86,Bewertungserfassung!C86)","v":"0"}]
[null,84,{"$f":"Bewertungserfassung!C87&COUNTIF(Bewertungserfassung!$C$4:C87,Bewertungserfassung!C87)","v":"0"}]
[null,85,{"$f":"Bewertungserfassung!C88&COUNTIF(Bewertungserfassung!$C$4:C88,Bewertungserfassung!C88)","v":"0"}]
[null,86,{"$f":"Bewertungserfassung!C89&COUNTIF(Bewertungserfassung!$C$4:C89,Bewertungserfassung!C89)","v":"0"}]
[null,87,{"$f":"Bewertungserfassung!C90&COUNTIF(Bewertungserfassung!$C$4:C90,Bewertungserfassung!C90)","v":"0"}]
[null,88,{"$f":"Bewertungserfassung!C91&COUNTIF(Bewertungserfassung!$C$4:C91,Bewertungserfassung!C91)","v":"0"}]
[null,89,{"$f":"Bewertungserfassung!C92&COUNTIF(Bewertungserfassung!$C$4:C92,Bewertungserfassung!C92)","v":"0"}]
[null,90,{"$f":"Bewertungserfassung!C93&COUNTIF(Bewertungserfassung!$C$4:C93,Bewertungserfassung!C93)","v":"0"}]
[null,91,{"$f":"Bewertungserfassung!C94&COUNTIF(Bewertungserfassung!$C$4:C94,Bewertungserfassung!C94)","v":"0"}]
[null,92,{"$f":"Bewertungserfassung!C95&COUNTIF(Bewertungserfassung!$C$4:C95,Bewertungserfassung!C95)","v":"0"}]
[null,93,{"$f":"Bewertungserfassung!C96&COUNTIF(Bewertungserfassung!$C$4:C96,Bewertungserfassung!C96)","v":"0"}]
[null,94,{"$f":"Bewertungserfassung!C97&COUNTIF(Bewertungserfassung!$C$4:C97,Bewertungserfassung!C97)","v":"0"}]
[null,95,{"$f":"Bewertungserfassung!C98&COUNTIF(Bewertungserfassung!$C$4:C98,Bewertungserfassung!C98)","v":"0"}]
[null,96,{"$f":"Bewertungserfassung!C99&COUNTIF(Bewertungserfassung!$C$4:C99,Bewertungserfassung!C99)","v":"0"}]
[null,97,{"$f":"Bewertungserfassung!C100&COUNTIF(Bewertungserfassung!$C$4:C100,Bewertungserfassung!C100)","v":"0"}]
[null,98,{"$f":"Bewertungserfassung!C101&COUNTIF(Bewertungserfassung!$C$4:C101,Bewertungserfassung!C101)","v":"0"}]
[null,99,{"$f":"Bewertungserfassung!C102&COUNTIF(Bewertungserfassung!$C$4:C102,Bewertungserfassung!C102)","v":"0"}]
[null,100,{"$f":"Bewertungserfassung!C103&COUNTIF(Bewertungserfassung!$C$4:C103,Bewertungserfassung!C103)","v":"0"}]
[null,101,{"$f":"Bewertungserfassung!C104&COUNTIF(Bewertungserfassung!$C$4:C104,Bewertungserfassung!C104)","v":"0"}]
[null,102,{"$f":"Bewertungserfassung!C105&COUNTIF(Bewertungserfassung!$C$4:C105,Bewertungserfassung!C105)","v":"0"}]
[null,103,{"$f":"Bewertungserfassung!C106&COUNTIF(Bewertungserfassung!$C$4:C106,Bewertungserfassung!C106)","v":"0"}]
[null,104,{"$f":"Bewertungserfassung!C107&COUNTIF(Bewertungserfassung!$C$4:C107,Bewertungserfassung!C107)","v":"0"}]
[null,105,{"$f":"Bewertungserfassung!C108&COUNTIF(Bewertungserfassung!$C$4:C108,Bewertungserfassung!C108)","v":"0"}]
[null,106,{"$f":"Bewertungserfassung!C109&COUNTIF(Bewertungserfassung!$C$4:C109,Bewertungserfassung!C109)","v":"0"}]
[null,107,{"$f":"Bewertungserfassung!C110&COUNTIF(Bewertungserfassung!$C$4:C110,Bewertungserfassung!C110)","v":"0"}]
[null,108,{"$f":"Bewertungserfassung!C111&COUNTIF(Bewertungserfassung!$C$4:C111,Bewertungserfassung!C111)","v":"0"}]
[null,109,{"$f":"Bewertungserfassung!C112&COUNTIF(Bewertungserfassung!$C$4:C112,Bewertungserfassung!C112)","v":"0"}]
[null,110,{"$f":"Bewertungserfassung!C113&COUNTIF(Bewertungserfassung!$C$4:C113,Bewertungserfassung!C113)","v":"0"}]
[null,111,{"$f":"Bewertungserfassung!C114&COUNTIF(Bewertungserfassung!$C$4:C114,Bewertungserfassung!C114)","v":"0"}]
[null,112,{"$f":"Bewertungserfassung!C115&COUNTIF(Bewertungserfassung!$C$4:C115,Bewertungserfassung!C115)","v":"0"}]
[null,113,{"$f":"Bewertungserfassung!C116&COUNTIF(Bewertungserfassung!$C$4:C116,Bewertungserfassung!C116)","v":"0"}]
[null,114,{"$f":"Bewertungserfassung!C117&COUNTIF(Bewertungserfassung!$C$4:C117,Bewertungserfassung!C117)","v":"0"}]
[null,115,{"$f":"Bewertungserfassung!C118&COUNTIF(Bewertungserfassung!$C$4:C118,Bewertungserfassung!C118)","v":"0"}]
[null,116,{"$f":"Bewertungserfassung!C119&COUNTIF(Bewertungserfassung!$C$4:C119,Bewertungserfassung!C119)","v":"0"}]
[null,117,{"$f":"Bewertungserfassung!C120&COUNTIF(Bewertungserfassung!$C$4:C120,Bewertungserfassung!C120)","v":"0"}]
[null,118,{"$f":"Bewertungserfassung!C121&COUNTIF(Bewertungserfassung!$C$4:C121,Bewertungserfassung!C121)","v":"0"}]
[null,119,{"$f":"Bewertungserfassung!C122&COUNTIF(Bewertungserfassung!$C$4:C122,Bewertungserfassung!C122)","v":"0"}]
[null,120,{"$f":"Bewertungserfassung!C123&COUNTIF(Bewertungserfassung!$C$4:C123,Bewertungserfassung!C123)","v":"0"}]
[null,121,{"$f":"Bewertungserfassung!C124&COUNTIF(Bewertungserfassung!$C$4:C124,Bewertungserfassung!C124)","v":"0"}]
[null,122,{"$f":"Bewertungserfassung!C125&COUNTIF(Bewertungserfassung!$C$4:C125,Bewertungserfassung!C125)","v":"0"}]
[null,123,{"$f":"Bewertungserfassung!C126&COUNTIF(Bewertungserfassung!$C$4:C126,Bewertungserfassung!C126)","v":"0"}]
[null,124,{"$f":"Bewertungserfassung!C127&COUNTIF(Bewertungserfassung!$C$4:C127,Bewertungserfassung!C127)","v":"0"}]
[null,125,{"$f":"Bewertungserfassung!C128&COUNTIF(Bewertungserfassung!$C$4:C128,Bewertungserfassung!C128)","v":"0"}]
[null,126,{"$f":"Bewertungserfassung!C129&COUNTIF(Bewertungserfassung!$C$4:C129,Bewertungserfassung!C129)","v":"0"}]
[null,127,{"$f":"Bewertungserfassung!C130&COUNTIF(Bewertungserfassung!$C$4:C130,Bewertungserfassung!C130)","v":"0"}]
[null,128,{"$f":"Bewertungserfassung!C131&COUNTIF(Bewertungserfassung!$C$4:C131,Bewertungserfassung!C131)","v":"0"}]
[null,129,{"$f":"Bewertungserfassung!C132&COUNTIF(Bewertungserfassung!$C$4:C132,Bewertungserfassung!C132)","v":"0"}]
[null,130,{"$f":"Bewertungserfassung!C133&COUNTIF(Bewertungserfassung!$C$4:C133,Bewertungserfassung!C133)","v":"0"}]
[null,131,{"$f":"Bewertungserfassung!C134&COUNTIF(Bewertungserfassung!$C$4:C134,Bewertungserfassung!C134)","v":"0"}]
[null,132,{"$f":"Bewertungserfassung!C135&COUNTIF(Bewertungserfassung!$C$4:C135,Bewertungserfassung!C135)","v":"0"}]
[null,133,{"$f":"Bewertungserfassung!C136&COUNTIF(Bewertungserfassung!$C$4:C136,Bewertungserfassung!C136)","v":"0"}]
[null,134,{"$f":"Bewertungserfassung!C137&COUNTIF(Bewertungserfassung!$C$4:C137,Bewertungserfassung!C137)","v":"0"}]
[null,135,{"$f":"Bewertungserfassung!C138&COUNTIF(Bewertungserfassung!$C$4:C138,Bewertungserfassung!C138)","v":"0"}]
[null,136,{"$f":"Bewertungserfassung!C139&COUNTIF(Bewertungserfassung!$C$4:C139,Bewertungserfassung!C139)","v":"0"}]
[null,137,{"$f":"Bewertungserfassung!C140&COUNTIF(Bewertungserfassung!$C$4:C140,Bewertungserfassung!C140)","v":"0"}]
[null,138,{"$f":"Bewertungserfassung!C141&COUNTIF(Bewertungserfassung!$C$4:C141,Bewertungserfassung!C141)","v":"0"}]
[null,139,{"$f":"Bewertungserfassung!C142&COUNTIF(Bewertungserfassung!$C$4:C142,Bewertungserfassung!C142)","v":"0"}]
[null,140,{"$f":"Bewertungserfassung!C143&COUNTIF(Bewertungserfassung!$C$4:C143,Bewertungserfassung!C143)","v":"0"}]
[null,141,{"$f":"Bewertungserfassung!C144&COUNTIF(Bewertungserfassung!$C$4:C144,Bewertungserfassung!C144)","v":"0"}]
[null,142,{"$f":"Bewertungserfassung!C145&COUNTIF(Bewertungserfassung!$C$4:C145,Bewertungserfassung!C145)","v":"0"}]
[null,143,{"$f":"Bewertungserfassung!C146&COUNTIF(Bewertungserfassung!$C$4:C146,Bewertungserfassung!C146)","v":"0"}]
[null,144,{"$f":"Bewertungserfassung!C147&COUNTIF(Bewertungserfassung!$C$4:C147,Bewertungserfassung!C147)","v":"0"}]
[null,145,{"$f":"Bewertungserfassung!C148&COUNTIF(Bewertungserfassung!$C$4:C148,Bewertungserfassung!C148)","v":"0"}]
[null,146,{"$f":"Bewertungserfassung!C149&COUNTIF(Bewertungserfassung!$C$4:C149,Bewertungserfassung!C149)","v":"0"}]
[null,147,{"$f":"Bewertungserfassung!C150&COUNTIF(Bewertungserfassung!$C$4:C150,Bewertungserfassung!C150)","v":"0"}]
[null,148,{"$f":"Bewertungserfassung!C151&COUNTIF(Bewertungserfassung!$C$4:C151,Bewertungserfassung!C151)","v":"0"}]
[null,149,{"$f":"Bewertungserfassung!C152&COUNTIF(Bewertungserfassung!$C$4:C152,Bewertungserfassung!C152)","v":"0"}]
[null,150,{"$f":"Bewertungserfassung!C153&COUNTIF(Bewertungserfassung!$C$4:C153,Bewertungserfassung!C153)","v":"0"}]
[null,151,{"$f":"Bewertungserfassung!C154&COUNTIF(Bewertungserfassung!$C$4:C154,Bewertungserfassung!C154)","v":"0"}]
[null,152,{"$f":"Bewertungserfassung!C155&COUNTIF(Bewertungserfassung!$C$4:C155,Bewertungserfassung!C155)","v":"0"}]
[null,153,{"$f":"Bewertungserfassung!C156&COUNTIF(Bewertungserfassung!$C$4:C156,Bewertungserfassung!C156)","v":"0"}]
[null,154,{"$f":"Bewertungserfassung!C157&COUNTIF(Bewertungserfassung!$C$4:C157,Bewertungserfassung!C157)","v":"0"}]
[null,155,{"$f":"Bewertungserfassung!C158&COUNTIF(Bewertungserfassung!$C$4:C158,Bewertungserfassung!C158)","v":"0"}]
[null,156,{"$f":"Bewertungserfassung!C159&COUNTIF(Bewertungserfassung!$C$4:C159,Bewertungserfassung!C159)","v":"0"}]
[null,157,{"$f":"Bewertungserfassung!C160&COUNTIF(Bewertungserfassung!$C$4:C160,Bewertungserfassung!C160)","v":"0"}]
[null,158,{"$f":"Bewertungserfassung!C161&COUNTIF(Bewertungserfassung!$C$4:C161,Bewertungserfassung!C161)","v":"0"}]
[null,159,{"$f":"Bewertungserfassung!C162&COUNTIF(Bewertungserfassung!$C$4:C162,Bewertungserfassung!C162)","v":"0"}]
[null,160,{"$f":"Bewertungserfassung!C163&COUNTIF(Bewertungserfassung!$C$4:C163,Bewertungserfassung!C163)","v":"0"}]
[null,161,{"$f":"Bewertungserfassung!C164&COUNTIF(Bewertungserfassung!$C$4:C164,Bewertungserfassung!C164)","v":"0"}]
[null,162,{"$f":"Bewertungserfassung!C165&COUNTIF(Bewertungserfassung!$C$4:C165,Bewertungserfassung!C165)","v":"0"}]
[null,163,{"$f":"Bewertungserfassung!C166&COUNTIF(Bewertungserfassung!$C$4:C166,Bewertungserfassung!C166)","v":"0"}]
[null,164,{"$f":"Bewertungserfassung!C167&COUNTIF(Bewertungserfassung!$C$4:C167,Bewertungserfassung!C167)","v":"0"}]
[null,165,{"$f":"Bewertungserfassung!C168&COUNTIF(Bewertungserfassung!$C$4:C168,Bewertungserfassung!C168)","v":"0"}]
[null,166,{"$f":"Bewertungserfassung!C169&COUNTIF(Bewertungserfassung!$C$4:C169,Bewertungserfassung!C169)","v":"0"}]
[null,167,{"$f":"Bewertungserfassung!C170&COUNTIF(Bewertungserfassung!$C$4:C170,Bewertungserfassung!C170)","v":"0"}]
[null,168,{"$f":"Bewertungserfassung!C171&COUNTIF(Bewertungserfassung!$C$4:C171,Bewertungserfassung!C171)","v":"0"}]
[null,169,{"$f":"Bewertungserfassung!C172&COUNTIF(Bewertungserfassung!$C$4:C172,Bewertungserfassung!C172)","v":"0"}]
[null,170,{"$f":"Bewertungserfassung!C173&COUNTIF(Bewertungserfassung!$C$4:C173,Bewertungserfassung!C173)","v":"0"}]
[null,171,{"$f":"Bewertungserfassung!C174&COUNTIF(Bewertungserfassung!$C$4:C174,Bewertungserfassung!C174)","v":"0"}]
[null,172,{"$f":"Bewertungserfassung!C175&COUNTIF(Bewertungserfassung!$C$4:C175,Bewertungserfassung!C175)","v":"0"}]
[null,173,{"$f":"Bewertungserfassung!C176&COUNTIF(Bewertungserfassung!$C$4:C176,Bewertungserfassung!C176)","v":"0"}]
[null,174,{"$f":"Bewertungserfassung!C177&COUNTIF(Bewertungserfassung!$C$4:C177,Bewertungserfassung!C177)","v":"0"}]
[null,175,{"$f":"Bewertungserfassung!C178&COUNTIF(Bewertungserfassung!$C$4:C178,Bewertungserfassung!C178)","v":"0"}]
[null,176,{"$f":"Bewertungserfassung!C179&COUNTIF(Bewertungserfassung!$C$4:C179,Bewertungserfassung!C179)","v":"0"}]
[null,177,{"$f":"Bewertungserfassung!C180&COUNTIF(Bewertungserfassung!$C$4:C180,Bewertungserfassung!C180)","v":"0"}]
[null,178,{"$f":"Bewertungserfassung!C181&COUNTIF(Bewertungserfassung!$C$4:C181,Bewertungserfassung!C181)","v":"0"}]
[null,179,{"$f":"Bewertungserfassung!C182&COUNTIF(Bewertungserfassung!$C$4:C182,Bewertungserfassung!C182)","v":"0"}]
[null,180,{"$f":"Bewertungserfassung!C183&COUNTIF(Bewertungserfassung!$C$4:C183,Bewertungserfassung!C183)","v":"0"}]
[null,181,{"$f":"Bewertungserfassung!C184&COUNTIF(Bewertungserfassung!$C$4:C184,Bewertungserfassung!C184)","v":"0"}]
[null,182,{"$f":"Bewertungserfassung!C185&COUNTIF(Bewertungserfassung!$C$4:C185,Bewertungserfassung!C185)","v":"0"}]
[null,183,{"$f":"Bewertungserfassung!C186&COUNTIF(Bewertungserfassung!$C$4:C186,Bewertungserfassung!C186)","v":"0"}]
[null,184,{"$f":"Bewertungserfassung!C187&COUNTIF(Bewertungserfassung!$C$4:C187,Bewertungserfassung!C187)","v":"0"}]
[null,185,{"$f":"Bewertungserfassung!C188&COUNTIF(Bewertungserfassung!$C$4:C188,Bewertungserfassung!C188)","v":"0"}]
[null,186,{"$f":"Bewertungserfassung!C189&COUNTIF(Bewertungserfassung!$C$4:C189,Bewertungserfassung!C189)","v":"0"}]
[null,187,{"$f":"Bewertungserfassung!C190&COUNTIF(Bewertungserfassung!$C$4:C190,Bewertungserfassung!C190)","v":"0"}]
[null,188,{"$f":"Bewertungserfassung!C191&COUNTIF(Bewertungserfassung!$C$4:C191,Bewertungserfassung!C191)","v":"0"}]
[null,189,{"$f":"Bewertungserfassung!C192&COUNTIF(Bewertungserfassung!$C$4:C192,Bewertungserfassung!C192)","v":"0"}]
[null,190,{"$f":"Bewertungserfassung!C193&COUNTIF(Bewertungserfassung!$C$4:C193,Bewertungserfassung!C193)","v":"0"}]
[null,191,{"$f":"Bewertungserfassung!C194&COUNTIF(Bewertungserfassung!$C$4:C194,Bewertungserfassung!C194)","v":"0"}]
[null,192,{"$f":"Bewertungserfassung!C195&COUNTIF(Bewertungserfassung!$C$4:C195,Bewertungserfassung!C195)","v":"0"}]
[null,193,{"$f":"Bewertungserfassung!C196&COUNTIF(Bewertungserfassung!$C$4:C196,Bewertungserfassung!C196)","v":"0"}]
[null,194,{"$f":"Bewertungserfassung!C197&COUNTIF(Bewertungserfassung!$C$4:C197,Bewertungserfassung!C197)","v":"0"}]
[null,195,{"$f":"Bewertungserfassung!C198&COUNTIF(Bewertungserfassung!$C$4:C198,Bewertungserfassung!C198)","v":"0"}]
[null,196,{"$f":"Bewertungserfassung!C199&COUNTIF(Bewertungserfassung!$C$4:C199,Bewertungserfassung!C199)","v":"0"}]
[null,197,{"$f":"Bewertungserfassung!C200&COUNTIF(Bewertungserfassung!$C$4:C200,Bewertungserfassung!C200)","v":"0"}]
[null,198,{"$f":"Bewertungserfassung!C201&COUNTIF(Bewertungserfassung!$C$4:C201,Bewertungserfassung!C201)","v":"0"}]
[null,199,{"$f":"Bewertungserfassung!C202&COUNTIF(Bewertungserfassung!$C$4:C202,Bewertungserfassung!C202)","v":"0"}]
[null,200,{"$f":"Bewertungserfassung!C203&COUNTIF(Bewertungserfassung!$C$4:C203,Bewertungserfassung!C203)","v":"0"}]
[null,201,{"$f":"Bewertungserfassung!C204&COUNTIF(Bewertungserfassung!$C$4:C204,Bewertungserfassung!C204)","v":"0"}]
[null,202,{"$f":"Bewertungserfassung!C205&COUNTIF(Bewertungserfassung!$C$4:C205,Bewertungserfassung!C205)","v":"0"}]
[null,203,{"$f":"Bewertungserfassung!C206&COUNTIF(Bewertungserfassung!$C$4:C206,Bewertungserfassung!C206)","v":"0"}]
[null,204,{"$f":"Bewertungserfassung!C207&COUNTIF(Bewertungserfassung!$C$4:C207,Bewertungserfassung!C207)","v":"0"}]
[null,205,{"$f":"Bewertungserfassung!C208&COUNTIF(Bewertungserfassung!$C$4:C208,Bewertungserfassung!C208)","v":"0"}]
[null,206,{"$f":"Bewertungserfassung!C209&COUNTIF(Bewertungserfassung!$C$4:C209,Bewertungserfassung!C209)","v":"0"}]
[null,207,{"$f":"Bewertungserfassung!C210&COUNTIF(Bewertungserfassung!$C$4:C210,Bewertungserfassung!C210)","v":"0"}]
[null,208,{"$f":"Bewertungserfassung!C211&COUNTIF(Bewertungserfassung!$C$4:C211,Bewertungserfassung!C211)","v":"0"}]
[null,209,{"$f":"Bewertungserfassung!C212&COUNTIF(Bewertungserfassung!$C$4:C212,Bewertungserfassung!C212)","v":"0"}]
[null,210,{"$f":"Bewertungserfassung!C213&COUNTIF(Bewertungserfassung!$C$4:C213,Bewertungserfassung!C213)","v":"0"}]
[null,211,{"$f":"Bewertungserfassung!C214&COUNTIF(Bewertungserfassung!$C$4:C214,Bewertungserfassung!C214)","v":"0"}]
[null,212,{"$f":"Bewertungserfassung!C215&COUNTIF(Bewertungserfassung!$C$4:C215,Bewertungserfassung!C215)","v":"0"}]
[null,213,{"$f":"Bewertungserfassung!C216&COUNTIF(Bewertungserfassung!$C$4:C216,Bewertungserfassung!C216)","v":"0"}]
[null,214,{"$f":"Bewertungserfassung!C217&COUNTIF(Bewertungserfassung!$C$4:C217,Bewertungserfassung!C217)","v":"0"}]
[null,215,{"$f":"Bewertungserfassung!C218&COUNTIF(Bewertungserfassung!$C$4:C218,Bewertungserfassung!C218)","v":"0"}]
[null,216,{"$f":"Bewertungserfassung!C219&COUNTIF(Bewertungserfassung!$C$4:C219,Bewertungserfassung!C219)","v":"0"}]
[null,217,{"$f":"Bewertungserfassung!C220&COUNTIF(Bewertungserfassung!$C$4:C220,Bewertungserfassung!C220)","v":"0"}]
[null,218,{"$f":"Bewertungserfassung!C221&COUNTIF(Bewertungserfassung!$C$4:C221,Bewertungserfassung!C221)","v":"0"}]
[null,219,{"$f":"Bewertungserfassung!C222&COUNTIF(Bewertungserfassung!$C$4:C222,Bewertungserfassung!C222)","v":"0"}]
[null,220,{"$f":"Bewertungserfassung!C223&COUNTIF(Bewertungserfassung!$C$4:C223,Bewertungserfassung!C223)","v":"0"}]
[null,221,{"$f":"Bewertungserfassung!C224&COUNTIF(Bewertungserfassung!$C$4:C224,Bewertungserfassung!C224)","v":"0"}]
[null,222,{"$f":"Bewertungserfassung!C225&COUNTIF(Bewertungserfassung!$C$4:C225,Bewertungserfassung!C225)","v":"0"}]
[null,223,{"$f":"Bewertungserfassung!C226&COUNTIF(Bewertungserfassung!$C$4:C226,Bewertungserfassung!C226)","v":"0"}]
[null,224,{"$f":"Bewertungserfassung!C227&COUNTIF(Bewertungserfassung!$C$4:C227,Bewertungserfassung!C227)","v":"0"}]
[null,225,{"$f":"Bewertungserfassung!C228&COUNTIF(Bewertungserfassung!$C$4:C228,Bewertungserfassung!C228)","v":"0"}]
[null,226,{"$f":"Bewertungserfassung!C229&COUNTIF(Bewertungserfassung!$C$4:C229,Bewertungserfassung!C229)","v":"0"}]
[null,227,{"$f":"Bewertungserfassung!C230&COUNTIF(Bewertungserfassung!$C$4:C230,Bewertungserfassung!C230)","v":"0"}]
[null,228,{"$f":"Bewertungserfassung!C231&COUNTIF(Bewertungserfassung!$C$4:C231,Bewertungserfassung!C231)","v":"0"}]
[null,229,{"$f":"Bewertungserfassung!C232&COUNTIF(Bewertungserfassung!$C$4:C232,Bewertungserfassung!C232)","v":"0"}]
[null,230,{"$f":"Bewertungserfassung!C233&COUNTIF(Bewertungserfassung!$C$4:C233,Bewertungserfassung!C233)","v":"0"}]
[null,231,{"$f":"Bewertungserfassung!C234&COUNTIF(Bewertungserfassung!$C$4:C234,Bewertungserfassung!C234)","v":"0"}]
[null,232,{"$f":"Bewertungserfassung!C235&COUNTIF(Bewertungserfassung!$C$4:C235,Bewertungserfassung!C235)","v":"0"}]
[null,233,{"$f":"Bewertungserfassung!C236&COUNTIF(Bewertungserfassung!$C$4:C236,Bewertungserfassung!C236)","v":"0"}]
[null,234,{"$f":"Bewertungserfassung!C237&COUNTIF(Bewertungserfassung!$C$4:C237,Bewertungserfassung!C237)","v":"0"}]
[null,235,{"$f":"Bewertungserfassung!C238&COUNTIF(Bewertungserfassung!$C$4:C238,Bewertungserfassung!C238)","v":"0"}]
[null,236,{"$f":"Bewertungserfassung!C239&COUNTIF(Bewertungserfassung!$C$4:C239,Bewertungserfassung!C239)","v":"0"}]
[null,237,{"$f":"Bewertungserfassung!C240&COUNTIF(Bewertungserfassung!$C$4:C240,Bewertungserfassung!C240)","v":"0"}]
[null,238,{"$f":"Bewertungserfassung!C241&COUNTIF(Bewertungserfassung!$C$4:C241,Bewertungserfassung!C241)","v":"0"}]
[null,239,{"$f":"Bewertungserfassung!C242&COUNTIF(Bewertungserfassung!$C$4:C242,Bewertungserfassung!C242)","v":"0"}]
[null,240,{"$f":"Bewertungserfassung!C243&COUNTIF(Bewertungserfassung!$C$4:C243,Bewertungserfassung!C243)","v":"0"}]
[null,241,{"$f":"Bewertungserfassung!C244&COUNTIF(Bewertungserfassung!$C$4:C244,Bewertungserfassung!C244)","v":"0"}]
[null,242,{"$f":"Bewertungserfassung!C245&COUNTIF(Bewertungserfassung!$C$4:C245,Bewertungserfassung!C245)","v":"0"}]
[null,243,{"$f":"Bewertungserfassung!C246&COUNTIF(Bewertungserfassung!$C$4:C246,Bewertungserfassung!C246)","v":"0"}]
[null,244,{"$f":"Bewertungserfassung!C247&COUNTIF(Bewertungserfassung!$C$4:C247,Bewertungserfassung!C247)","v":"0"}]
[null,245,{"$f":"Bewertungserfassung!C248&COUNTIF(Bewertungserfassung!$C$4:C248,Bewertungserfassung!C248)","v":"0"}]
[null,246,{"$f":"Bewertungserfassung!C249&COUNTIF(Bewertungserfassung!$C$4:C249,Bewertungserfassung!C249)","v":"0"}]
[null,247,{"$f":"Bewertungserfassung!C250&COUNTIF(Bewertungserfassung!$C$4:C250,Bewertungserfassung!C250)","v":"0"}]
[null,248,{"$f":"Bewertungserfassung!C251&COUNTIF(Bewertungserfassung!$C$4:C251,Bewertungserfassung!C251)","v":"0"}]
[null,249,{"$f":"Bewertungserfassung!C252&COUNTIF(Bewertungserfassung!$C$4:C252,Bewertungserfassung!C252)","v":"0"}]
[null,250,{"$f":"Bewertungserfassung!C253&COUNTIF(Bewertungserfassung!$C$4:C253,Bewertungserfassung!C253)","v":"0"}]
[null,251,{"$f":"Bewertungserfassung!C254&COUNTIF(Bewertungserfassung!$C$4:C254,Bewertungserfassung!C254)","v":"0"}]
[null,252,{"$f":"Bewertungserfassung!C255&COUNTIF(Bewertungserfassung!$C$4:C255,Bewertungserfassung!C255)","v":"0"}]
[null,253,{"$f":"Bewertungserfassung!C256&COUNTIF(Bewertungserfassung!$C$4:C256,Bewertungserfassung!C256)","v":"0"}]
[null,254,{"$f":"Bewertungserfassung!C257&COUNTIF(Bewertungserfassung!$C$4:C257,Bewertungserfassung!C257)","v":"0"}]
[null,255,{"$f":"Bewertungserfassung!C258&COUNTIF(Bewertungserfassung!$C$4:C258,Bewertungserfassung!C258)","v":"0"}]
[null,256,{"$f":"Bewertungserfassung!C259&COUNTIF(Bewertungserfassung!$C$4:C259,Bewertungserfassung!C259)","v":"0"}]
[null,257,{"$f":"Bewertungserfassung!C260&COUNTIF(Bewertungserfassung!$C$4:C260,Bewertungserfassung!C260)","v":"0"}]
[null,258,{"$f":"Bewertungserfassung!C261&COUNTIF(Bewertungserfassung!$C$4:C261,Bewertungserfassung!C261)","v":"0"}]
[null,259,{"$f":"Bewertungserfassung!C262&COUNTIF(Bewertungserfassung!$C$4:C262,Bewertungserfassung!C262)","v":"0"}]
[null,260,{"$f":"Bewertungserfassung!C263&COUNTIF(Bewertungserfassung!$C$4:C263,Bewertungserfassung!C263)","v":"0"}]
[null,261,{"$f":"Bewertungserfassung!C264&COUNTIF(Bewertungserfassung!$C$4:C264,Bewertungserfassung!C264)","v":"0"}]
[null,262,{"$f":"Bewertungserfassung!C265&COUNTIF(Bewertungserfassung!$C$4:C265,Bewertungserfassung!C265)","v":"0"}]
[null,263,{"$f":"Bewertungserfassung!C266&COUNTIF(Bewertungserfassung!$C$4:C266,Bewertungserfassung!C266)","v":"0"}]
[null,264,{"$f":"Bewertungserfassung!C267&COUNTIF(Bewertungserfassung!$C$4:C267,Bewertungserfassung!C267)","v":"0"}]
[null,265,{"$f":"Bewertungserfassung!C268&COUNTIF(Bewertungserfassung!$C$4:C268,Bewertungserfassung!C268)","v":"0"}]
[null,266,{"$f":"Bewertungserfassung!C269&COUNTIF(Bewertungserfassung!$C$4:C269,Bewertungserfassung!C269)","v":"0"}]
[null,267,{"$f":"Bewertungserfassung!C270&COUNTIF(Bewertungserfassung!$C$4:C270,Bewertungserfassung!C270)","v":"0"}]
[null,268,{"$f":"Bewertungserfassung!C271&COUNTIF(Bewertungserfassung!$C$4:C271,Bewertungserfassung!C271)","v":"0"}]
[null,269,{"$f":"Bewertungserfassung!C272&COUNTIF(Bewertungserfassung!$C$4:C272,Bewertungserfassung!C272)","v":"0"}]
[null,270,{"$f":"Bewertungserfassung!C273&COUNTIF(Bewertungserfassung!$C$4:C273,Bewertungserfassung!C273)","v":"0"}]
[null,271,{"$f":"Bewertungserfassung!C274&COUNTIF(Bewertungserfassung!$C$4:C274,Bewertungserfassung!C274)","v":"0"}]
[null,272,{"$f":"Bewertungserfassung!C275&COUNTIF(Bewertungserfassung!$C$4:C275,Bewertungserfassung!C275)","v":"0"}]
[null,273,{"$f":"Bewertungserfassung!C276&COUNTIF(Bewertungserfassung!$C$4:C276,Bewertungserfassung!C276)","v":"0"}]
[null,274,{"$f":"Bewertungserfassung!C277&COUNTIF(Bewertungserfassung!$C$4:C277,Bewertungserfassung!C277)","v":"0"}]
[null,275,{"$f":"Bewertungserfassung!C278&COUNTIF(Bewertungserfassung!$C$4:C278,Bewertungserfassung!C278)","v":"0"}]
[null,276,{"$f":"Bewertungserfassung!C279&COUNTIF(Bewertungserfassung!$C$4:C279,Bewertungserfassung!C279)","v":"0"}]
[null,277,{"$f":"Bewertungserfassung!C280&COUNTIF(Bewertungserfassung!$C$4:C280,Bewertungserfassung!C280)","v":"0"}]
[null,278,{"$f":"Bewertungserfassung!C281&COUNTIF(Bewertungserfassung!$C$4:C281,Bewertungserfassung!C281)","v":"0"}]
[null,279,{"$f":"Bewertungserfassung!C282&COUNTIF(Bewertungserfassung!$C$4:C282,Bewertungserfassung!C282)","v":"0"}]
[null,280,{"$f":"Bewertungserfassung!C283&COUNTIF(Bewertungserfassung!$C$4:C283,Bewertungserfassung!C283)","v":"0"}]
[null,281,{"$f":"Bewertungserfassung!C284&COUNTIF(Bewertungserfassung!$C$4:C284,Bewertungserfassung!C284)","v":"0"}]
[null,282,{"$f":"Bewertungserfassung!C285&COUNTIF(Bewertungserfassung!$C$4:C285,Bewertungserfassung!C285)","v":"0"}]
[null,283,{"$f":"Bewertungserfassung!C286&COUNTIF(Bewertungserfassung!$C$4:C286,Bewertungserfassung!C286)","v":"0"}]
[null,284,{"$f":"Bewertungserfassung!C287&COUNTIF(Bewertungserfassung!$C$4:C287,Bewertungserfassung!C287)","v":"0"}]
[null,285,{"$f":"Bewertungserfassung!C288&COUNTIF(Bewertungserfassung!$C$4:C288,Bewertungserfassung!C288)","v":"0"}]
[null,286,{"$f":"Bewertungserfassung!C289&COUNTIF(Bewertungserfassung!$C$4:C289,Bewertungserfassung!C289)","v":"0"}]
[null,287,{"$f":"Bewertungserfassung!C290&COUNTIF(Bewertungserfassung!$C$4:C290,Bewertungserfassung!C290)","v":"0"}]
[null,288,{"$f":"Bewertungserfassung!C291&COUNTIF(Bewertungserfassung!$C$4:C291,Bewertungserfassung!C291)","v":"0"}]
[null,289,{"$f":"Bewertungserfassung!C292&COUNTIF(Bewertungserfassung!$C$4:C292,Bewertungserfassung!C292)","v":"0"}]
[null,290,{"$f":"Bewertungserfassung!C293&COUNTIF(Bewertungserfassung!$C$4:C293,Bewertungserfassung!C293)","v":"0"}]
[null,291,{"$f":"Bewertungserfassung!C294&COUNTIF(Bewertungserfassung!$C$4:C294,Bewertungserfassung!C294)","v":"0"}]
[null,292,{"$f":"Bewertungserfassung!C295&COUNTIF(Bewertungserfassung!$C$4:C295,Bewertungserfassung!C295)","v":"0"}]
[null,293,{"$f":"Bewertungserfassung!C296&COUNTIF(Bewertungserfassung!$C$4:C296,Bewertungserfassung!C296)","v":"0"}]
[null,294,{"$f":"Bewertungserfassung!C297&COUNTIF(Bewertungserfassung!$C$4:C297,Bewertungserfassung!C297)","v":"0"}]
[null,295,{"$f":"Bewertungserfassung!C298&COUNTIF(Bewertungserfassung!$C$4:C298,Bewertungserfassung!C298)","v":"0"}]
[null,296,{"$f":"Bewertungserfassung!C299&COUNTIF(Bewertungserfassung!$C$4:C299,Bewertungserfassung!C299)","v":"0"}]
[null,297,{"$f":"Bewertungserfassung!C300&COUNTIF(Bewertungserfassung!$C$4:C300,Bewertungserfassung!C300)","v":"0"}]
[null,298,{"$f":"Bewertungserfassung!C301&COUNTIF(Bewertungserfassung!$C$4:C301,Bewertungserfassung!C301)","v":"0"}]
[null,299,{"$f":"Bewertungserfassung!C302&COUNTIF(Bewertungserfassung!$C$4:C302,Bewertungserfassung!C302)","v":"0"}]
[null,300,{"$f":"Bewertungserfassung!C303&COUNTIF(Bewertungserfassung!$C$4:C303,Bewertungserfassung!C303)","v":"0"}]
[null,301,{"$f":"Bewertungserfassung!C304&COUNTIF(Bewertungserfassung!$C$4:C304,Bewertungserfassung!C304)","v":"0"}]
[null,302,{"$f":"Bewertungserfassung!C305&COUNTIF(Bewertungserfassung!$C$4:C305,Bewertungserfassung!C305)","v":"0"}]
[null,303,{"$f":"Bewertungserfassung!C306&COUNTIF(Bewertungserfassung!$C$4:C306,Bewertungserfassung!C306)","v":"0"}]
[null,304,{"$f":"Bewertungserfassung!C307&COUNTIF(Bewertungserfassung!$C$4:C307,Bewertungserfassung!C307)","v":"0"}]
[null,305,{"$f":"Bewertungserfassung!C308&COUNTIF(Bewertungserfassung!$C$4:C308,Bewertungserfassung!C308)","v":"0"}]
[null,306,{"$f":"Bewertungserfassung!C309&COUNTIF(Bewertungserfassung!$C$4:C309,Bewertungserfassung!C309)","v":"0"}]
[null,307,{"$f":"Bewertungserfassung!C310&COUNTIF(Bewertungserfassung!$C$4:C310,Bewertungserfassung!C310)","v":"0"}]
[null,308,{"$f":"Bewertungserfassung!C311&COUNTIF(Bewertungserfassung!$C$4:C311,Bewertungserfassung!C311)","v":"0"}]
[null,309,{"$f":"Bewertungserfassung!C312&COUNTIF(Bewertungserfassung!$C$4:C312,Bewertungserfassung!C312)","v":"0"}]
[null,310,{"$f":"Bewertungserfassung!C313&COUNTIF(Bewertungserfassung!$C$4:C313,Bewertungserfassung!C313)","v":"0"}]
[null,311,{"$f":"Bewertungserfassung!C314&COUNTIF(Bewertungserfassung!$C$4:C314,Bewertungserfassung!C314)","v":"0"}]
[null,312,{"$f":"Bewertungserfassung!C315&COUNTIF(Bewertungserfassung!$C$4:C315,Bewertungserfassung!C315)","v":"0"}]
[null,313,{"$f":"Bewertungserfassung!C316&COUNTIF(Bewertungserfassung!$C$4:C316,Bewertungserfassung!C316)","v":"0"}]
[null,314,{"$f":"Bewertungserfassung!C317&COUNTIF(Bewertungserfassung!$C$4:C317,Bewertungserfassung!C317)","v":"0"}]
[null,315,{"$f":"Bewertungserfassung!C318&COUNTIF(Bewertungserfassung!$C$4:C318,Bewertungserfassung!C318)","v":"0"}]
[null,316,{"$f":"Bewertungserfassung!C319&COUNTIF(Bewertungserfassung!$C$4:C319,Bewertungserfassung!C319)","v":"0"}]
[null,317,{"$f":"Bewertungserfassung!C320&COUNTIF(Bewertungserfassung!$C$4:C320,Bewertungserfassung!C320)","v":"0"}]
[null,318,{"$f":"Bewertungserfassung!C321&COUNTIF(Bewertungserfassung!$C$4:C321,Bewertungserfassung!C321)","v":"0"}]
[null,319,{"$f":"Bewertungserfassung!C322&COUNTIF(Bewertungserfassung!$C$4:C322,Bewertungserfassung!C322)","v":"0"}]
[null,320,{"$f":"Bewertungserfassung!C323&COUNTIF(Bewertungserfassung!$C$4:C323,Bewertungserfassung!C323)","v":"0"}]
[null,321,{"$f":"Bewertungserfassung!C324&COUNTIF(Bewertungserfassung!$C$4:C324,Bewertungserfassung!C324)","v":"0"}]
[null,322,{"$f":"Bewertungserfassung!C325&COUNTIF(Bewertungserfassung!$C$4:C325,Bewertungserfassung!C325)","v":"0"}]
[null,323,{"$f":"Bewertungserfassung!C326&COUNTIF(Bewertungserfassung!$C$4:C326,Bewertungserfassung!C326)","v":"0"}]
[null,324,{"$f":"Bewertungserfassung!C327&COUNTIF(Bewertungserfassung!$C$4:C327,Bewertungserfassung!C327)","v":"0"}]
[null,325,{"$f":"Bewertungserfassung!C328&COUNTIF(Bewertungserfassung!$C$4:C328,Bewertungserfassung!C328)","v":"0"}]
[null,326,{"$f":"Bewertungserfassung!C329&COUNTIF(Bewertungserfassung!$C$4:C329,Bewertungserfassung!C329)","v":"0"}]
[null,327,{"$f":"Bewertungserfassung!C330&COUNTIF(Bewertungserfassung!$C$4:C330,Bewertungserfassung!C330)","v":"0"}]
[null,328,{"$f":"Bewertungserfassung!C331&COUNTIF(Bewertungserfassung!$C$4:C331,Bewertungserfassung!C331)","v":"0"}]
[null,329,{"$f":"Bewertungserfassung!C332&COUNTIF(Bewertungserfassung!$C$4:C332,Bewertungserfassung!C332)","v":"0"}]
[null,330,{"$f":"Bewertungserfassung!C333&COUNTIF(Bewertungserfassung!$C$4:C333,Bewertungserfassung!C333)","v":"0"}]
[null,331,{"$f":"Bewertungserfassung!C334&COUNTIF(Bewertungserfassung!$C$4:C334,Bewertungserfassung!C334)","v":"0"}]
[null,332,{"$f":"Bewertungserfassung!C335&COUNTIF(Bewertungserfassung!$C$4:C335,Bewertungserfassung!C335)","v":"0"}]
[null,333,{"$f":"Bewertungserfassung!C336&COUNTIF(Bewertungserfassung!$C$4:C336,Bewertungserfassung!C336)","v":"0"}]
[null,334,{"$f":"Bewertungserfassung!C337&COUNTIF(Bewertungserfassung!$C$4:C337,Bewertungserfassung!C337)","v":"0"}]
[null,335,{"$f":"Bewertungserfassung!C338&COUNTIF(Bewertungserfassung!$C$4:C338,Bewertungserfassung!C338)","v":"0"}]
[null,336,{"$f":"Bewertungserfassung!C339&COUNTIF(Bewertungserfassung!$C$4:C339,Bewertungserfassung!C339)","v":"0"}]
[null,337,{"$f":"Bewertungserfassung!C340&COUNTIF(Bewertungserfassung!$C$4:C340,Bewertungserfassung!C340)","v":"0"}]
[null,338,{"$f":"Bewertungserfassung!C341&COUNTIF(Bewertungserfassung!$C$4:C341,Bewertungserfassung!C341)","v":"0"}]
[null,339,{"$f":"Bewertungserfassung!C342&COUNTIF(Bewertungserfassung!$C$4:C342,Bewertungserfassung!C342)","v":"0"}]
[null,340,{"$f":"Bewertungserfassung!C343&COUNTIF(Bewertungserfassung!$C$4:C343,Bewertungserfassung!C343)","v":"0"}]
[null,341,{"$f":"Bewertungserfassung!C344&COUNTIF(Bewertungserfassung!$C$4:C344,Bewertungserfassung!C344)","v":"0"}]
[null,342,{"$f":"Bewertungserfassung!C345&COUNTIF(Bewertungserfassung!$C$4:C345,Bewertungserfassung!C345)","v":"0"}]
[null,343,{"$f":"Bewertungserfassung!C346&COUNTIF(Bewertungserfassung!$C$4:C346,Bewertungserfassung!C346)","v":"0"}]
[null,344,{"$f":"Bewertungserfassung!C347&COUNTIF(Bewertungserfassung!$C$4:C347,Bewertungserfassung!C347)","v":"0"}]
[null,345,{"$f":"Bewertungserfassung!C348&COUNTIF(Bewertungserfassung!$C$4:C348,Bewertungserfassung!C348)","v":"0"}]
[null,346,{"$f":"Bewertungserfassung!C349&COUNTIF(Bewertungserfassung!$C$4:C349,Bewertungserfassung!C349)","v":"0"}]
[null,347,{"$f":"Bewertungserfassung!C350&COUNTIF(Bewertungserfassung!$C$4:C350,Bewertungserfassung!C350)","v":"0"}]
[null,348,{"$f":"Bewertungserfassung!C351&COUNTIF(Bewertungserfassung!$C$4:C351,Bewertungserfassung!C351)","v":"0"}]
[null,349,{"$f":"Bewertungserfassung!C352&COUNTIF(Bewertungserfassung!$C$4:C352,Bewertungserfassung!C352)","v":"0"}]
[null,350,{"$f":"Bewertungserfassung!C353&COUNTIF(Bewertungserfassung!$C$4:C353,Bewertungserfassung!C353)","v":"0"}]
[null,351,{"$f":"Bewertungserfassung!C354&COUNTIF(Bewertungserfassung!$C$4:C354,Bewertungserfassung!C354)","v":"0"}]
[null,352,{"$f":"Bewertungserfassung!C355&COUNTIF(Bewertungserfassung!$C$4:C355,Bewertungserfassung!C355)","v":"0"}]
[null,353,{"$f":"Bewertungserfassung!C356&COUNTIF(Bewertungserfassung!$C$4:C356,Bewertungserfassung!C356)","v":"0"}]
[null,354,{"$f":"Bewertungserfassung!C357&COUNTIF(Bewertungserfassung!$C$4:C357,Bewertungserfassung!C357)","v":"0"}]
[null,355,{"$f":"Bewertungserfassung!C358&COUNTIF(Bewertungserfassung!$C$4:C358,Bewertungserfassung!C358)","v":"0"}]
[null,356,{"$f":"Bewertungserfassung!C359&COUNTIF(Bewertungserfassung!$C$4:C359,Bewertungserfassung!C359)","v":"0"}]
[null,357,{"$f":"Bewertungserfassung!C360&COUNTIF(Bewertungserfassung!$C$4:C360,Bewertungserfassung!C360)","v":"0"}]
[null,358,{"$f":"Bewertungserfassung!C361&COUNTIF(Bewertungserfassung!$C$4:C361,Bewertungserfassung!C361)","v":"0"}]
[null,359,{"$f":"Bewertungserfassung!C362&COUNTIF(Bewertungserfassung!$C$4:C362,Bewertungserfassung!C362)","v":"0"}]
[null,360,{"$f":"Bewertungserfassung!C363&COUNTIF(Bewertungserfassung!$C$4:C363,Bewertungserfassung!C363)","v":"0"}]
[null,361,{"$f":"Bewertungserfassung!C364&COUNTIF(Bewertungserfassung!$C$4:C364,Bewertungserfassung!C364)","v":"0"}]
[null,362,{"$f":"Bewertungserfassung!C365&COUNTIF(Bewertungserfassung!$C$4:C365,Bewertungserfassung!C365)","v":"0"}]
[null,363,{"$f":"Bewertungserfassung!C366&COUNTIF(Bewertungserfassung!$C$4:C366,Bewertungserfassung!C366)","v":"0"}]
[null,364,{"$f":"Bewertungserfassung!C367&COUNTIF(Bewertungserfassung!$C$4:C367,Bewertungserfassung!C367)","v":"0"}]
[null,365,{"$f":"Bewertungserfassung!C368&COUNTIF(Bewertungserfassung!$C$4:C368,Bewertungserfassung!C368)","v":"0"}]
[null,366,{"$f":"Bewertungserfassung!C369&COUNTIF(Bewertungserfassung!$C$4:C369,Bewertungserfassung!C369)","v":"0"}]
[null,367,{"$f":"Bewertungserfassung!C370&COUNTIF(Bewertungserfassung!$C$4:C370,Bewertungserfassung!C370)","v":"0"}]
[null,368,{"$f":"Bewertungserfassung!C371&COUNTIF(Bewertungserfassung!$C$4:C371,Bewertungserfassung!C371)","v":"0"}]
[null,369,{"$f":"Bewertungserfassung!C372&COUNTIF(Bewertungserfassung!$C$4:C372,Bewertungserfassung!C372)","v":"0"}]
[null,370,{"$f":"Bewertungserfassung!C373&COUNTIF(Bewertungserfassung!$C$4:C373,Bewertungserfassung!C373)","v":"0"}]
[null,371,{"$f":"Bewertungserfassung!C374&COUNTIF(Bewertungserfassung!$C$4:C374,Bewertungserfassung!C374)","v":"0"}]
[null,372,{"$f":"Bewertungserfassung!C375&COUNTIF(Bewertungserfassung!$C$4:C375,Bewertungserfassung!C375)","v":"0"}]
[null,373,{"$f":"Bewertungserfassung!C376&COUNTIF(Bewertungserfassung!$C$4:C376,Bewertungserfassung!C376)","v":"0"}]
[null,374,{"$f":"Bewertungserfassung!C377&COUNTIF(Bewertungserfassung!$C$4:C377,Bewertungserfassung!C377)","v":"0"}]
[null,375,{"$f":"Bewertungserfassung!C378&COUNTIF(Bewertungserfassung!$C$4:C378,Bewertungserfassung!C378)","v":"0"}]
[null,376,{"$f":"Bewertungserfassung!C379&COUNTIF(Bewertungserfassung!$C$4:C379,Bewertungserfassung!C379)","v":"0"}]
[null,377,{"$f":"Bewertungserfassung!C380&COUNTIF(Bewertungserfassung!$C$4:C380,Bewertungserfassung!C380)","v":"0"}]
[null,378,{"$f":"Bewertungserfassung!C381&COUNTIF(Bewertungserfassung!$C$4:C381,Bewertungserfassung!C381)","v":"0"}]
[null,379,{"$f":"Bewertungserfassung!C382&COUNTIF(Bewertungserfassung!$C$4:C382,Bewertungserfassung!C382)","v":"0"}]
[null,380,{"$f":"Bewertungserfassung!C383&COUNTIF(Bewertungserfassung!$C$4:C383,Bewertungserfassung!C383)","v":"0"}]
[null,381,{"$f":"Bewertungserfassung!C384&COUNTIF(Bewertungserfassung!$C$4:C384,Bewertungserfassung!C384)","v":"0"}]
[null,382,{"$f":"Bewertungserfassung!C385&COUNTIF(Bewertungserfassung!$C$4:C385,Bewertungserfassung!C385)","v":"0"}]
[null,383,{"$f":"Bewertungserfassung!C386&COUNTIF(Bewertungserfassung!$C$4:C386,Bewertungserfassung!C386)","v":"0"}]
[null,384,{"$f":"Bewertungserfassung!C387&COUNTIF(Bewertungserfassung!$C$4:C387,Bewertungserfassung!C387)","v":"0"}]
[null,385,{"$f":"Bewertungserfassung!C388&COUNTIF(Bewertungserfassung!$C$4:C388,Bewertungserfassung!C388)","v":"0"}]
[null,386,{"$f":"Bewertungserfassung!C389&COUNTIF(Bewertungserfassung!$C$4:C389,Bewertungserfassung!C389)","v":"0"}]
[null,387,{"$f":"Bewertungserfassung!C390&COUNTIF(Bewertungserfassung!$C$4:C390,Bewertungserfassung!C390)","v":"0"}]
[null,388,{"$f":"Bewertungserfassung!C391&COUNTIF(Bewertungserfassung!$C$4:C391,Bewertungserfassung!C391)","v":"0"}]
[null,389,{"$f":"Bewertungserfassung!C392&COUNTIF(Bewertungserfassung!$C$4:C392,Bewertungserfassung!C392)","v":"0"}]
[null,390,{"$f":"Bewertungserfassung!C393&COUNTIF(Bewertungserfassung!$C$4:C393,Bewertungserfassung!C393)","v":"0"}]
[null,391,{"$f":"Bewertungserfassung!C394&COUNTIF(Bewertungserfassung!$C$4:C394,Bewertungserfassung!C394)","v":"0"}]
[null,392,{"$f":"Bewertungserfassung!C395&COUNTIF(Bewertungserfassung!$C$4:C395,Bewertungserfassung!C395)","v":"0"}]
[null,393,{"$f":"Bewertungserfassung!C396&COUNTIF(Bewertungserfassung!$C$4:C396,Bewertungserfassung!C396)","v":"0"}]
[null,394,{"$f":"Bewertungserfassung!C397&COUNTIF(Bewertungserfassung!$C$4:C397,Bewertungserfassung!C397)","v":"0"}]
[null,395,{"$f":"Bewertungserfassung!C398&COUNTIF(Bewertungserfassung!$C$4:C398,Bewertungserfassung!C398)","v":"0"}]
[null,396,{"$f":"Bewertungserfassung!C399&COUNTIF(Bewertungserfassung!$C$4:C399,Bewertungserfassung!C399)","v":"0"}]
[null,397,{"$f":"Bewertungserfassung!C400&COUNTIF(Bewertungserfassung!$C$4:C400,Bewertungserfassung!C400)","v":"0"}]
[null,398,{"$f":"Bewertungserfassung!C401&COUNTIF(Bewertungserfassung!$C$4:C401,Bewertungserfassung!C401)","v":"0"}]
[null,399,{"$f":"Bewertungserfassung!C402&COUNTIF(Bewertungserfassung!$C$4:C402,Bewertungserfassung!C402)","v":"0"}]
[null,400,{"$f":"Bewertungserfassung!C403&COUNTIF(Bewertungserfassung!$C$4:C403,Bewertungserfassung!C403)","v":"0"}]
[null,401,{"$f":"Bewertungserfassung!C404&COUNTIF(Bewertungserfassung!$C$4:C404,Bewertungserfassung!C404)","v":"0"}]
[null,402,{"$f":"Bewertungserfassung!C405&COUNTIF(Bewertungserfassung!$C$4:C405,Bewertungserfassung!C405)","v":"0"}]
[null,403,{"$f":"Bewertungserfassung!C406&COUNTIF(Bewertungserfassung!$C$4:C406,Bewertungserfassung!C406)","v":"0"}]
[null,404,{"$f":"Bewertungserfassung!C407&COUNTIF(Bewertungserfassung!$C$4:C407,Bewertungserfassung!C407)","v":"0"}]
[null,405,{"$f":"Bewertungserfassung!C408&COUNTIF(Bewertungserfassung!$C$4:C408,Bewertungserfassung!C408)","v":"0"}]
[null,406,{"$f":"Bewertungserfassung!C409&COUNTIF(Bewertungserfassung!$C$4:C409,Bewertungserfassung!C409)","v":"0"}]
[null,407,{"$f":"Bewertungserfassung!C410&COUNTIF(Bewertungserfassung!$C$4:C410,Bewertungserfassung!C410)","v":"0"}]
[null,408,{"$f":"Bewertungserfassung!C411&COUNTIF(Bewertungserfassung!$C$4:C411,Bewertungserfassung!C411)","v":"0"}]
[null,409,{"$f":"Bewertungserfassung!C412&COUNTIF(Bewertungserfassung!$C$4:C412,Bewertungserfassung!C412)","v":"0"}]
[null,410,{"$f":"Bewertungserfassung!C413&COUNTIF(Bewertungserfassung!$C$4:C413,Bewertungserfassung!C413)","v":"0"}]
[null,411,{"$f":"Bewertungserfassung!C414&COUNTIF(Bewertungserfassung!$C$4:C414,Bewertungserfassung!C414)","v":"0"}]
[null,412,{"$f":"Bewertungserfassung!C415&COUNTIF(Bewertungserfassung!$C$4:C415,Bewertungserfassung!C415)","v":"0"}]
[null,413,{"$f":"Bewertungserfassung!C416&COUNTIF(Bewertungserfassung!$C$4:C416,Bewertungserfassung!C416)","v":"0"}]
[null,414,{"$f":"Bewertungserfassung!C417&COUNTIF(Bewertungserfassung!$C$4:C417,Bewertungserfassung!C417)","v":"0"}]
[null,415,{"$f":"Bewertungserfassung!C418&COUNTIF(Bewertungserfassung!$C$4:C418,Bewertungserfassung!C418)","v":"0"}]
[null,416,{"$f":"Bewertungserfassung!C419&COUNTIF(Bewertungserfassung!$C$4:C419,Bewertungserfassung!C419)","v":"0"}]
[null,417,{"$f":"Bewertungserfassung!C420&COUNTIF(Bewertungserfassung!$C$4:C420,Bewertungserfassung!C420)","v":"0"}]
[null,418,{"$f":"Bewertungserfassung!C421&COUNTIF(Bewertungserfassung!$C$4:C421,Bewertungserfassung!C421)","v":"0"}]
[null,419,{"$f":"Bewertungserfassung!C422&COUNTIF(Bewertungserfassung!$C$4:C422,Bewertungserfassung!C422)","v":"0"}]
[null,420,{"$f":"Bewertungserfassung!C423&COUNTIF(Bewertungserfassung!$C$4:C423,Bewertungserfassung!C423)","v":"0"}]
[null,421,{"$f":"Bewertungserfassung!C424&COUNTIF(Bewertungserfassung!$C$4:C424,Bewertungserfassung!C424)","v":"0"}]
[null,422,{"$f":"Bewertungserfassung!C425&COUNTIF(Bewertungserfassung!$C$4:C425,Bewertungserfassung!C425)","v":"0"}]
[null,423,{"$f":"Bewertungserfassung!C426&COUNTIF(Bewertungserfassung!$C$4:C426,Bewertungserfassung!C426)","v":"0"}]
[null,424,{"$f":"Bewertungserfassung!C427&COUNTIF(Bewertungserfassung!$C$4:C427,Bewertungserfassung!C427)","v":"0"}]
[null,425,{"$f":"Bewertungserfassung!C428&COUNTIF(Bewertungserfassung!$C$4:C428,Bewertungserfassung!C428)","v":"0"}]
[null,426,{"$f":"Bewertungserfassung!C429&COUNTIF(Bewertungserfassung!$C$4:C429,Bewertungserfassung!C429)","v":"0"}]
[null,427,{"$f":"Bewertungserfassung!C430&COUNTIF(Bewertungserfassung!$C$4:C430,Bewertungserfassung!C430)","v":"0"}]
[null,428,{"$f":"Bewertungserfassung!C431&COUNTIF(Bewertungserfassung!$C$4:C431,Bewertungserfassung!C431)","v":"0"}]
[null,429,{"$f":"Bewertungserfassung!C432&COUNTIF(Bewertungserfassung!$C$4:C432,Bewertungserfassung!C432)","v":"0"}]
[null,430,{"$f":"Bewertungserfassung!C433&COUNTIF(Bewertungserfassung!$C$4:C433,Bewertungserfassung!C433)","v":"0"}]
[null,431,{"$f":"Bewertungserfassung!C434&COUNTIF(Bewertungserfassung!$C$4:C434,Bewertungserfassung!C434)","v":"0"}]
[null,432,{"$f":"Bewertungserfassung!C435&COUNTIF(Bewertungserfassung!$C$4:C435,Bewertungserfassung!C435)","v":"0"}]
[null,433,{"$f":"Bewertungserfassung!C436&COUNTIF(Bewertungserfassung!$C$4:C436,Bewertungserfassung!C436)","v":"0"}]
[null,434,{"$f":"Bewertungserfassung!C437&COUNTIF(Bewertungserfassung!$C$4:C437,Bewertungserfassung!C437)","v":"0"}]
[null,435,{"$f":"Bewertungserfassung!C438&COUNTIF(Bewertungserfassung!$C$4:C438,Bewertungserfassung!C438)","v":"0"}]
[null,436,{"$f":"Bewertungserfassung!C439&COUNTIF(Bewertungserfassung!$C$4:C439,Bewertungserfassung!C439)","v":"0"}]
[null,437,{"$f":"Bewertungserfassung!C440&COUNTIF(Bewertungserfassung!$C$4:C440,Bewertungserfassung!C440)","v":"0"}]
[null,438,{"$f":"Bewertungserfassung!C441&COUNTIF(Bewertungserfassung!$C$4:C441,Bewertungserfassung!C441)","v":"0"}]
[null,439,{"$f":"Bewertungserfassung!C442&COUNTIF(Bewertungserfassung!$C$4:C442,Bewertungserfassung!C442)","v":"0"}]
[null,440,{"$f":"Bewertungserfassung!C443&COUNTIF(Bewertungserfassung!$C$4:C443,Bewertungserfassung!C443)","v":"0"}]
[null,441,{"$f":"Bewertungserfassung!C444&COUNTIF(Bewertungserfassung!$C$4:C444,Bewertungserfassung!C444)","v":"0"}]
[null,442,{"$f":"Bewertungserfassung!C445&COUNTIF(Bewertungserfassung!$C$4:C445,Bewertungserfassung!C445)","v":"0"}]
[null,443,{"$f":"Bewertungserfassung!C446&COUNTIF(Bewertungserfassung!$C$4:C446,Bewertungserfassung!C446)","v":"0"}]
[null,444,{"$f":"Bewertungserfassung!C447&COUNTIF(Bewertungserfassung!$C$4:C447,Bewertungserfassung!C447)","v":"0"}]
[null,445,{"$f":"Bewertungserfassung!C448&COUNTIF(Bewertungserfassung!$C$4:C448,Bewertungserfassung!C448)","v":"0"}]
[null,446,{"$f":"Bewertungserfassung!C449&COUNTIF(Bewertungserfassung!$C$4:C449,Bewertungserfassung!C449)","v":"0"}]
[null,447,{"$f":"Bewertungserfassung!C450&COUNTIF(Bewertungserfassung!$C$4:C450,Bewertungserfassung!C450)","v":"0"}]
[null,448,{"$f":"Bewertungserfassung!C451&COUNTIF(Bewertungserfassung!$C$4:C451,Bewertungserfassung!C451)","v":"0"}]
[null,449,{"$f":"Bewertungserfassung!C452&COUNTIF(Bewertungserfassung!$C$4:C452,Bewertungserfassung!C452)","v":"0"}]
[null,450,{"$f":"Bewertungserfassung!C453&COUNTIF(Bewertungserfassung!$C$4:C453,Bewertungserfassung!C453)","v":"0"}]
[null,451,{"$f":"Bewertungserfassung!C454&COUNTIF(Bewertungserfassung!$C$4:C454,Bewertungserfassung!C454)","v":"0"}]
[null,452,{"$f":"Bewertungserfassung!C455&COUNTIF(Bewertungserfassung!$C$4:C455,Bewertungserfassung!C455)","v":"0"}]
[null,453,{"$f":"Bewertungserfassung!C456&COUNTIF(Bewertungserfassung!$C$4:C456,Bewertungserfassung!C456)","v":"0"}]
[null,454,{"$f":"Bewertungserfassung!C457&COUNTIF(Bewertungserfassung!$C$4:C457,Bewertungserfassung!C457)","v":"0"}]
[null,455,{"$f":"Bewertungserfassung!C458&COUNTIF(Bewertungserfassung!$C$4:C458,Bewertungserfassung!C458)","v":"0"}]
[null,456,{"$f":"Bewertungserfassung!C459&COUNTIF(Bewertungserfassung!$C$4:C459,Bewertungserfassung!C459)","v":"0"}]
[null,457,{"$f":"Bewertungserfassung!C460&COUNTIF(Bewertungserfassung!$C$4:C460,Bewertungserfassung!C460)","v":"0"}]
[null,458,{"$f":"Bewertungserfassung!C461&COUNTIF(Bewertungserfassung!$C$4:C461,Bewertungserfassung!C461)","v":"0"}]
[null,459,{"$f":"Bewertungserfassung!C462&COUNTIF(Bewertungserfassung!$C$4:C462,Bewertungserfassung!C462)","v":"0"}]
[null,460,{"$f":"Bewertungserfassung!C463&COUNTIF(Bewertungserfassung!$C$4:C463,Bewertungserfassung!C463)","v":"0"}]
[null,461,{"$f":"Bewertungserfassung!C464&COUNTIF(Bewertungserfassung!$C$4:C464,Bewertungserfassung!C464)","v":"0"}]
[null,462,{"$f":"Bewertungserfassung!C465&COUNTIF(Bewertungserfassung!$C$4:C465,Bewertungserfassung!C465)","v":"0"}]
[null,463,{"$f":"Bewertungserfassung!C466&COUNTIF(Bewertungserfassung!$C$4:C466,Bewertungserfassung!C466)","v":"0"}]
[null,464,{"$f":"Bewertungserfassung!C467&COUNTIF(Bewertungserfassung!$C$4:C467,Bewertungserfassung!C467)","v":"0"}]
[null,465,{"$f":"Bewertungserfassung!C468&COUNTIF(Bewertungserfassung!$C$4:C468,Bewertungserfassung!C468)","v":"0"}]
[null,466,{"$f":"Bewertungserfassung!C469&COUNTIF(Bewertungserfassung!$C$4:C469,Bewertungserfassung!C469)","v":"0"}]
[null,467,{"$f":"Bewertungserfassung!C470&COUNTIF(Bewertungserfassung!$C$4:C470,Bewertungserfassung!C470)","v":"0"}]
[null,468,{"$f":"Bewertungserfassung!C471&COUNTIF(Bewertungserfassung!$C$4:C471,Bewertungserfassung!C471)","v":"0"}]
[null,469,{"$f":"Bewertungserfassung!C472&COUNTIF(Bewertungserfassung!$C$4:C472,Bewertungserfassung!C472)","v":"0"}]
[null,470,{"$f":"Bewertungserfassung!C473&COUNTIF(Bewertungserfassung!$C$4:C473,Bewertungserfassung!C473)","v":"0"}]
[null,471,{"$f":"Bewertungserfassung!C474&COUNTIF(Bewertungserfassung!$C$4:C474,Bewertungserfassung!C474)","v":"0"}]
[null,472,{"$f":"Bewertungserfassung!C475&COUNTIF(Bewertungserfassung!$C$4:C475,Bewertungserfassung!C475)","v":"0"}]
[null,473,{"$f":"Bewertungserfassung!C476&COUNTIF(Bewertungserfassung!$C$4:C476,Bewertungserfassung!C476)","v":"0"}]
[null,474,{"$f":"Bewertungserfassung!C477&COUNTIF(Bewertungserfassung!$C$4:C477,Bewertungserfassung!C477)","v":"0"}]
[null,475,{"$f":"Bewertungserfassung!C478&COUNTIF(Bewertungserfassung!$C$4:C478,Bewertungserfassung!C478)","v":"0"}]
[null,476,{"$f":"Bewertungserfassung!C479&COUNTIF(Bewertungserfassung!$C$4:C479,Bewertungserfassung!C479)","v":"0"}]
[null,477,{"$f":"Bewertungserfassung!C480&COUNTIF(Bewertungserfassung!$C$4:C480,Bewertungserfassung!C480)","v":"0"}]
[null,478,{"$f":"Bewertungserfassung!C481&COUNTIF(Bewertungserfassung!$C$4:C481,Bewertungserfassung!C481)","v":"0"}]
[null,479,{"$f":"Bewertungserfassung!C482&COUNTIF(Bewertungserfassung!$C$4:C482,Bewertungserfassung!C482)","v":"0"}]
[null,480,{"$f":"Bewertungserfassung!C483&COUNTIF(Bewertungserfassung!$C$4:C483,Bewertungserfassung!C483)","v":"0"}]
[null,481,{"$f":"Bewertungserfassung!C484&COUNTIF(Bewertungserfassung!$C$4:C484,Bewertungserfassung!C484)","v":"0"}]
[null,482,{"$f":"Bewertungserfassung!C485&COUNTIF(Bewertungserfassung!$C$4:C485,Bewertungserfassung!C485)","v":"0"}]
[null,483,{"$f":"Bewertungserfassung!C486&COUNTIF(Bewertungserfassung!$C$4:C486,Bewertungserfassung!C486)","v":"0"}]
[null,484,{"$f":"Bewertungserfassung!C487&COUNTIF(Bewertungserfassung!$C$4:C487,Bewertungserfassung!C487)","v":"0"}]
[null,485,{"$f":"Bewertungserfassung!C488&COUNTIF(Bewertungserfassung!$C$4:C488,Bewertungserfassung!C488)","v":"0"}]
[null,486,{"$f":"Bewertungserfassung!C489&COUNTIF(Bewertungserfassung!$C$4:C489,Bewertungserfassung!C489)","v":"0"}]
[null,487,{"$f":"Bewertungserfassung!C490&COUNTIF(Bewertungserfassung!$C$4:C490,Bewertungserfassung!C490)","v":"0"}]
[null,488,{"$f":"Bewertungserfassung!C491&COUNTIF(Bewertungserfassung!$C$4:C491,Bewertungserfassung!C491)","v":"0"}]
[null,489,{"$f":"Bewertungserfassung!C492&COUNTIF(Bewertungserfassung!$C$4:C492,Bewertungserfassung!C492)","v":"0"}]
[null,490,{"$f":"Bewertungserfassung!C493&COUNTIF(Bewertungserfassung!$C$4:C493,Bewertungserfassung!C493)","v":"0"}]
[null,491,{"$f":"Bewertungserfassung!C494&COUNTIF(Bewertungserfassung!$C$4:C494,Bewertungserfassung!C494)","v":"0"}]
[null,492,{"$f":"Bewertungserfassung!C495&COUNTIF(Bewertungserfassung!$C$4:C495,Bewertungserfassung!C495)","v":"0"}]
[null,493,{"$f":"Bewertungserfassung!C496&COUNTIF(Bewertungserfassung!$C$4:C496,Bewertungserfassung!C496)","v":"0"}]
[null,494,{"$f":"Bewertungserfassung!C497&COUNTIF(Bewertungserfassung!$C$4:C497,Bewertungserfassung!C497)","v":"0"}]
[null,495,{"$f":"Bewertungserfassung!C498&COUNTIF(Bewertungserfassung!$C$4:C498,Bewertungserfassung!C498)","v":"0"}]
[null,496,{"$f":"Bewertungserfassung!C499&COUNTIF(Bewertungserfassung!$C$4:C499,Bewertungserfassung!C499)","v":"0"}]
[null,497,{"$f":"Bewertungserfassung!C500&COUNTIF(Bewertungserfassung!$C$4:C500,Bewertungserfassung!C500)","v":"0"}]
[null,498,{"$f":"Bewertungserfassung!C501&COUNTIF(Bewertungserfassung!$C$4:C501,Bewertungserfassung!C501)","v":"0"}]
[null,499,{"$f":"Bewertungserfassung!C502&COUNTIF(Bewertungserfassung!$C$4:C502,Bewertungserfassung!C502)","v":"0"}]
[null,500,{"$f":"Bewertungserfassung!C503&COUNTIF(Bewertungserfassung!$C$4:C503,Bewertungserfassung!C503)","v":"0"}]
[null,501,{"$f":"Bewertungserfassung!C504&COUNTIF(Bewertungserfassung!$C$4:C504,Bewertungserfassung!C504)","v":"0"}]
[null,502,{"$f":"Bewertungserfassung!C505&COUNTIF(Bewertungserfassung!$C$4:C505,Bewertungserfassung!C505)","v":"0"}]
[null,503,{"$f":"Bewertungserfassung!C506&COUNTIF(Bewertungserfassung!$C$4:C506,Bewertungserfassung!C506)","v":"0"}]
[null,504,{"$f":"Bewertungserfassung!C507&COUNTIF(Bewertungserfassung!$C$4:C507,Bewertungserfassung!C507)","v":"0"}]
[null,505,{"$f":"Bewertungserfassung!C508&COUNTIF(Bewertungserfassung!$C$4:C508,Bewertungserfassung!C508)","v":"0"}]
[null,506,{"$f":"Bewertungserfassung!C509&COUNTIF(Bewertungserfassung!$C$4:C509,Bewertungserfassung!C509)","v":"0"}]
[null,507,{"$f":"Bewertungserfassung!C510&COUNTIF(Bewertungserfassung!$C$4:C510,Bewertungserfassung!C510)","v":"0"}]
[null,508,{"$f":"Bewertungserfassung!C511&COUNTIF(Bewertungserfassung!$C$4:C511,Bewertungserfassung!C511)","v":"0"}]
[null,509,{"$f":"Bewertungserfassung!C512&COUNTIF(Bewertungserfassung!$C$4:C512,Bewertungserfassung!C512)","v":"0"}]
[null,510,{"$f":"Bewertungserfassung!C513&COUNTIF(Bewertungserfassung!$C$4:C513,Bewertungserfassung!C513)","v":"0"}]
[null,511,{"$f":"Bewertungserfassung!C514&COUNTIF(Bewertungserfassung!$C$4:C514,Bewertungserfassung!C514)","v":"0"}]
[null,512,{"$f":"Bewertungserfassung!C515&COUNTIF(Bewertungserfassung!$C$4:C515,Bewertungserfassung!C515)","v":"0"}]
[null,513,{"$f":"Bewertungserfassung!C516&COUNTIF(Bewertungserfassung!$C$4:C516,Bewertungserfassung!C516)","v":"0"}]
[null,514,{"$f":"Bewertungserfassung!C517&COUNTIF(Bewertungserfassung!$C$4:C517,Bewertungserfassung!C517)","v":"0"}]
[null,515,{"$f":"Bewertungserfassung!C518&COUNTIF(Bewertungserfassung!$C$4:C518,Bewertungserfassung!C518)","v":"0"}]
[null,516,{"$f":"Bewertungserfassung!C519&COUNTIF(Bewertungserfassung!$C$4:C519,Bewertungserfassung!C519)","v":"0"}]
[null,517,{"$f":"Bewertungserfassung!C520&COUNTIF(Bewertungserfassung!$C$4:C520,Bewertungserfassung!C520)","v":"0"}]
[null,518,{"$f":"Bewertungserfassung!C521&COUNTIF(Bewertungserfassung!$C$4:C521,Bewertungserfassung!C521)","v":"0"}]
[null,519,{"$f":"Bewertungserfassung!C522&COUNTIF(Bewertungserfassung!$C$4:C522,Bewertungserfassung!C522)","v":"0"}]
[null,520,{"$f":"Bewertungserfassung!C523&COUNTIF(Bewertungserfassung!$C$4:C523,Bewertungserfassung!C523)","v":"0"}]
[null,521,{"$f":"Bewertungserfassung!C524&COUNTIF(Bewertungserfassung!$C$4:C524,Bewertungserfassung!C524)","v":"0"}]
[null,522,{"$f":"Bewertungserfassung!C525&COUNTIF(Bewertungserfassung!$C$4:C525,Bewertungserfassung!C525)","v":"0"}]
[null,523,{"$f":"Bewertungserfassung!C526&COUNTIF(Bewertungserfassung!$C$4:C526,Bewertungserfassung!C526)","v":"0"}]
[null,524,{"$f":"Bewertungserfassung!C527&COUNTIF(Bewertungserfassung!$C$4:C527,Bewertungserfassung!C527)","v":"0"}]
[null,525,{"$f":"Bewertungserfassung!C528&COUNTIF(Bewertungserfassung!$C$4:C528,Bewertungserfassung!C528)","v":"0"}]
[null,526,{"$f":"Bewertungserfassung!C529&COUNTIF(Bewertungserfassung!$C$4:C529,Bewertungserfassung!C529)","v":"0"}]
[null,527,{"$f":"Bewertungserfassung!C530&COUNTIF(Bewertungserfassung!$C$4:C530,Bewertungserfassung!C530)","v":"0"}]
[null,528,{"$f":"Bewertungserfassung!C531&COUNTIF(Bewertungserfassung!$C$4:C531,Bewertungserfassung!C531)","v":"0"}]
[null,529,{"$f":"Bewertungserfassung!C532&COUNTIF(Bewertungserfassung!$C$4:C532,Bewertungserfassung!C532)","v":"0"}]
[null,530,{"$f":"Bewertungserfassung!C533&COUNTIF(Bewertungserfassung!$C$4:C533,Bewertungserfassung!C533)","v":"0"}]
[null,531,{"$f":"Bewertungserfassung!C534&COUNTIF(Bewertungserfassung!$C$4:C534,Bewertungserfassung!C534)","v":"0"}]
[null,532,{"$f":"Bewertungserfassung!C535&COUNTIF(Bewertungserfassung!$C$4:C535,Bewertungserfassung!C535)","v":"0"}]
[null,533,{"$f":"Bewertungserfassung!C536&COUNTIF(Bewertungserfassung!$C$4:C536,Bewertungserfassung!C536)","v":"0"}]
[null,534,{"$f":"Bewertungserfassung!C537&COUNTIF(Bewertungserfassung!$C$4:C537,Bewertungserfassung!C537)","v":"0"}]
[null,535,{"$f":"Bewertungserfassung!C538&COUNTIF(Bewertungserfassung!$C$4:C538,Bewertungserfassung!C538)","v":"0"}]
[null,536,{"$f":"Bewertungserfassung!C539&COUNTIF(Bewertungserfassung!$C$4:C539,Bewertungserfassung!C539)","v":"0"}]
[null,537,{"$f":"Bewertungserfassung!C540&COUNTIF(Bewertungserfassung!$C$4:C540,Bewertungserfassung!C540)","v":"0"}]
[null,538,{"$f":"Bewertungserfassung!C541&COUNTIF(Bewertungserfassung!$C$4:C541,Bewertungserfassung!C541)","v":"0"}]
[null,539,{"$f":"Bewertungserfassung!C542&COUNTIF(Bewertungserfassung!$C$4:C542,Bewertungserfassung!C542)","v":"0"}]
[null,540,{"$f":"Bewertungserfassung!C543&COUNTIF(Bewertungserfassung!$C$4:C543,Bewertungserfassung!C543)","v":"0"}]
[null,541,{"$f":"Bewertungserfassung!C544&COUNTIF(Bewertungserfassung!$C$4:C544,Bewertungserfassung!C544)","v":"0"}]
[null,542,{"$f":"Bewertungserfassung!C545&COUNTIF(Bewertungserfassung!$C$4:C545,Bewertungserfassung!C545)","v":"0"}]
[null,543,{"$f":"Bewertungserfassung!C546&COUNTIF(Bewertungserfassung!$C$4:C546,Bewertungserfassung!C546)","v":"0"}]
[null,544,{"$f":"Bewertungserfassung!C547&COUNTIF(Bewertungserfassung!$C$4:C547,Bewertungserfassung!C547)","v":"0"}]
[null,545,{"$f":"Bewertungserfassung!C548&COUNTIF(Bewertungserfassung!$C$4:C548,Bewertungserfassung!C548)","v":"0"}]
[null,546,{"$f":"Bewertungserfassung!C549&COUNTIF(Bewertungserfassung!$C$4:C549,Bewertungserfassung!C549)","v":"0"}]
[null,547,{"$f":"Bewertungserfassung!C550&COUNTIF(Bewertungserfassung!$C$4:C550,Bewertungserfassung!C550)","v":"0"}]
[null,548,{"$f":"Bewertungserfassung!C551&COUNTIF(Bewertungserfassung!$C$4:C551,Bewertungserfassung!C551)","v":"0"}]
[null,549,{"$f":"Bewertungserfassung!C552&COUNTIF(Bewertungserfassung!$C$4:C552,Bewertungserfassung!C552)","v":"0"}]
[null,550,{"$f":"Bewertungserfassung!C553&COUNTIF(Bewertungserfassung!$C$4:C553,Bewertungserfassung!C553)","v":"0"}]
[null,551,{"$f":"Bewertungserfassung!C554&COUNTIF(Bewertungserfassung!$C$4:C554,Bewertungserfassung!C554)","v":"0"}]
[null,552,{"$f":"Bewertungserfassung!C555&COUNTIF(Bewertungserfassung!$C$4:C555,Bewertungserfassung!C555)","v":"0"}]
[null,553,{"$f":"Bewertungserfassung!C556&COUNTIF(Bewertungserfassung!$C$4:C556,Bewertungserfassung!C556)","v":"0"}]
[null,554,{"$f":"Bewertungserfassung!C557&COUNTIF(Bewertungserfassung!$C$4:C557,Bewertungserfassung!C557)","v":"0"}]
[null,555,{"$f":"Bewertungserfassung!C558&COUNTIF(Bewertungserfassung!$C$4:C558,Bewertungserfassung!C558)","v":"0"}]
[null,556,{"$f":"Bewertungserfassung!C559&COUNTIF(Bewertungserfassung!$C$4:C559,Bewertungserfassung!C559)","v":"0"}]
[null,557,{"$f":"Bewertungserfassung!C560&COUNTIF(Bewertungserfassung!$C$4:C560,Bewertungserfassung!C560)","v":"0"}]
[null,558,{"$f":"Bewertungserfassung!C561&COUNTIF(Bewertungserfassung!$C$4:C561,Bewertungserfassung!C561)","v":"0"}]
[null,559,{"$f":"Bewertungserfassung!C562&COUNTIF(Bewertungserfassung!$C$4:C562,Bewertungserfassung!C562)","v":"0"}]
[null,560,{"$f":"Bewertungserfassung!C563&COUNTIF(Bewertungserfassung!$C$4:C563,Bewertungserfassung!C563)","v":"0"}]
[null,561,{"$f":"Bewertungserfassung!C564&COUNTIF(Bewertungserfassung!$C$4:C564,Bewertungserfassung!C564)","v":"0"}]
[null,562,{"$f":"Bewertungserfassung!C565&COUNTIF(Bewertungserfassung!$C$4:C565,Bewertungserfassung!C565)","v":"0"}]
[null,563,{"$f":"Bewertungserfassung!C566&COUNTIF(Bewertungserfassung!$C$4:C566,Bewertungserfassung!C566)","v":"0"}]
[null,564,{"$f":"Bewertungserfassung!C567&COUNTIF(Bewertungserfassung!$C$4:C567,Bewertungserfassung!C567)","v":"0"}]
[null,565,{"$f":"Bewertungserfassung!C568&COUNTIF(Bewertungserfassung!$C$4:C568,Bewertungserfassung!C568)","v":"0"}]
[null,566,{"$f":"Bewertungserfassung!C569&COUNTIF(Bewertungserfassung!$C$4:C569,Bewertungserfassung!C569)","v":"0"}]
[null,567,{"$f":"Bewertungserfassung!C570&COUNTIF(Bewertungserfassung!$C$4:C570,Bewertungserfassung!C570)","v":"0"}]
[null,568,{"$f":"Bewertungserfassung!C571&COUNTIF(Bewertungserfassung!$C$4:C571,Bewertungserfassung!C571)","v":"0"}]
[null,569,{"$f":"Bewertungserfassung!C572&COUNTIF(Bewertungserfassung!$C$4:C572,Bewertungserfassung!C572)","v":"0"}]
[null,570,{"$f":"Bewertungserfassung!C573&COUNTIF(Bewertungserfassung!$C$4:C573,Bewertungserfassung!C573)","v":"0"}]
[null,571,{"$f":"Bewertungserfassung!C574&COUNTIF(Bewertungserfassung!$C$4:C574,Bewertungserfassung!C574)","v":"0"}]
[null,572,{"$f":"Bewertungserfassung!C575&COUNTIF(Bewertungserfassung!$C$4:C575,Bewertungserfassung!C575)","v":"0"}]
[null,573,{"$f":"Bewertungserfassung!C576&COUNTIF(Bewertungserfassung!$C$4:C576,Bewertungserfassung!C576)","v":"0"}]
[null,574,{"$f":"Bewertungserfassung!C577&COUNTIF(Bewertungserfassung!$C$4:C577,Bewertungserfassung!C577)","v":"0"}]
[null,575,{"$f":"Bewertungserfassung!C578&COUNTIF(Bewertungserfassung!$C$4:C578,Bewertungserfassung!C578)","v":"0"}]
[null,576,{"$f":"Bewertungserfassung!C579&COUNTIF(Bewertungserfassung!$C$4:C579,Bewertungserfassung!C579)","v":"0"}]
[null,577,{"$f":"Bewertungserfassung!C580&COUNTIF(Bewertungserfassung!$C$4:C580,Bewertungserfassung!C580)","v":"0"}]
[null,578,{"$f":"Bewertungserfassung!C581&COUNTIF(Bewertungserfassung!$C$4:C581,Bewertungserfassung!C581)","v":"0"}]
[null,579,{"$f":"Bewertungserfassung!C582&COUNTIF(Bewertungserfassung!$C$4:C582,Bewertungserfassung!C582)","v":"0"}]
[null,580,{"$f":"Bewertungserfassung!C583&COUNTIF(Bewertungserfassung!$C$4:C583,Bewertungserfassung!C583)","v":"0"}]
[null,581,{"$f":"Bewertungserfassung!C584&COUNTIF(Bewertungserfassung!$C$4:C584,Bewertungserfassung!C584)","v":"0"}]
[null,582,{"$f":"Bewertungserfassung!C585&COUNTIF(Bewertungserfassung!$C$4:C585,Bewertungserfassung!C585)","v":"0"}]
[null,583,{"$f":"Bewertungserfassung!C586&COUNTIF(Bewertungserfassung!$C$4:C586,Bewertungserfassung!C586)","v":"0"}]
[null,584,{"$f":"Bewertungserfassung!C587&COUNTIF(Bewertungserfassung!$C$4:C587,Bewertungserfassung!C587)","v":"0"}]
[null,585,{"$f":"Bewertungserfassung!C588&COUNTIF(Bewertungserfassung!$C$4:C588,Bewertungserfassung!C588)","v":"0"}]
[null,586,{"$f":"Bewertungserfassung!C589&COUNTIF(Bewertungserfassung!$C$4:C589,Bewertungserfassung!C589)","v":"0"}]
[null,587,{"$f":"Bewertungserfassung!C590&COUNTIF(Bewertungserfassung!$C$4:C590,Bewertungserfassung!C590)","v":"0"}]
[null,588,{"$f":"Bewertungserfassung!C591&COUNTIF(Bewertungserfassung!$C$4:C591,Bewertungserfassung!C591)","v":"0"}]
[null,589,{"$f":"Bewertungserfassung!C592&COUNTIF(Bewertungserfassung!$C$4:C592,Bewertungserfassung!C592)","v":"0"}]
[null,590,{"$f":"Bewertungserfassung!C593&COUNTIF(Bewertungserfassung!$C$4:C593,Bewertungserfassung!C593)","v":"0"}]
[null,591,{"$f":"Bewertungserfassung!C594&COUNTIF(Bewertungserfassung!$C$4:C594,Bewertungserfassung!C594)","v":"0"}]
[null,592,{"$f":"Bewertungserfassung!C595&COUNTIF(Bewertungserfassung!$C$4:C595,Bewertungserfassung!C595)","v":"0"}]
[null,593,{"$f":"Bewertungserfassung!C596&COUNTIF(Bewertungserfassung!$C$4:C596,Bewertungserfassung!C596)","v":"0"}]
[null,594,{"$f":"Bewertungserfassung!C597&COUNTIF(Bewertungserfassung!$C$4:C597,Bewertungserfassung!C597)","v":"0"}]
[null,595,{"$f":"Bewertungserfassung!C598&COUNTIF(Bewertungserfassung!$C$4:C598,Bewertungserfassung!C598)","v":"0"}]
[null,596,{"$f":"Bewertungserfassung!C599&COUNTIF(Bewertungserfassung!$C$4:C599,Bewertungserfassung!C599)","v":"0"}]
[null,597,{"$f":"Bewertungserfassung!C600&COUNTIF(Bewertungserfassung!$C$4:C600,Bewertungserfassung!C600)","v":"0"}]
[null,598,{"$f":"Bewertungserfassung!C601&COUNTIF(Bewertungserfassung!$C$4:C601,Bewertungserfassung!C601)","v":"0"}]
[null,599,{"$f":"Bewertungserfassung!C602&COUNTIF(Bewertungserfassung!$C$4:C602,Bewertungserfassung!C602)","v":"0"}]
[null,600,{"$f":"Bewertungserfassung!C603&COUNTIF(Bewertungserfassung!$C$4:C603,Bewertungserfassung!C603)","v":"0"}]
[null,601,{"$f":"Bewertungserfassung!C604&COUNTIF(Bewertungserfassung!$C$4:C604,Bewertungserfassung!C604)","v":"0"}]
[null,602,{"$f":"Bewertungserfassung!C605&COUNTIF(Bewertungserfassung!$C$4:C605,Bewertungserfassung!C605)","v":"0"}]
[null,603,{"$f":"Bewertungserfassung!C606&COUNTIF(Bewertungserfassung!$C$4:C606,Bewertungserfassung!C606)","v":"0"}]
[null,604,{"$f":"Bewertungserfassung!C607&COUNTIF(Bewertungserfassung!$C$4:C607,Bewertungserfassung!C607)","v":"0"}]
[null,605,{"$f":"Bewertungserfassung!C608&COUNTIF(Bewertungserfassung!$C$4:C608,Bewertungserfassung!C608)","v":"0"}]
[null,606,{"$f":"Bewertungserfassung!C609&COUNTIF(Bewertungserfassung!$C$4:C609,Bewertungserfassung!C609)","v":"0"}]
[null,607,{"$f":"Bewertungserfassung!C610&COUNTIF(Bewertungserfassung!$C$4:C610,Bewertungserfassung!C610)","v":"0"}]
[null,608,{"$f":"Bewertungserfassung!C611&COUNTIF(Bewertungserfassung!$C$4:C611,Bewertungserfassung!C611)","v":"0"}]
[null,609,{"$f":"Bewertungserfassung!C612&COUNTIF(Bewertungserfassung!$C$4:C612,Bewertungserfassung!C612)","v":"0"}]
[null,610,{"$f":"Bewertungserfassung!C613&COUNTIF(Bewertungserfassung!$C$4:C613,Bewertungserfassung!C613)","v":"0"}]
[null,611,{"$f":"Bewertungserfassung!C614&COUNTIF(Bewertungserfassung!$C$4:C614,Bewertungserfassung!C614)","v":"0"}]
[null,612,{"$f":"Bewertungserfassung!C615&COUNTIF(Bewertungserfassung!$C$4:C615,Bewertungserfassung!C615)","v":"0"}]
[null,613,{"$f":"Bewertungserfassung!C616&COUNTIF(Bewertungserfassung!$C$4:C616,Bewertungserfassung!C616)","v":"0"}]
[null,614,{"$f":"Bewertungserfassung!C617&COUNTIF(Bewertungserfassung!$C$4:C617,Bewertungserfassung!C617)","v":"0"}]
[null,615,{"$f":"Bewertungserfassung!C618&COUNTIF(Bewertungserfassung!$C$4:C618,Bewertungserfassung!C618)","v":"0"}]
[null,616,{"$f":"Bewertungserfassung!C619&COUNTIF(Bewertungserfassung!$C$4:C619,Bewertungserfassung!C619)","v":"0"}]
[null,617,{"$f":"Bewertungserfassung!C620&COUNTIF(Bewertungserfassung!$C$4:C620,Bewertungserfassung!C620)","v":"0"}]
[null,618,{"$f":"Bewertungserfassung!C621&COUNTIF(Bewertungserfassung!$C$4:C621,Bewertungserfassung!C621)","v":"0"}]
[null,619,{"$f":"Bewertungserfassung!C622&COUNTIF(Bewertungserfassung!$C$4:C622,Bewertungserfassung!C622)","v":"0"}]
[null,620,{"$f":"Bewertungserfassung!C623&COUNTIF(Bewertungserfassung!$C$4:C623,Bewertungserfassung!C623)","v":"0"}]
[null,621,{"$f":"Bewertungserfassung!C624&COUNTIF(Bewertungserfassung!$C$4:C624,Bewertungserfassung!C624)","v":"0"}]
[null,622,{"$f":"Bewertungserfassung!C625&COUNTIF(Bewertungserfassung!$C$4:C625,Bewertungserfassung!C625)","v":"0"}]
[null,623,{"$f":"Bewertungserfassung!C626&COUNTIF(Bewertungserfassung!$C$4:C626,Bewertungserfassung!C626)","v":"0"}]
[null,624,{"$f":"Bewertungserfassung!C627&COUNTIF(Bewertungserfassung!$C$4:C627,Bewertungserfassung!C627)","v":"0"}]
[null,625,{"$f":"Bewertungserfassung!C628&COUNTIF(Bewertungserfassung!$C$4:C628,Bewertungserfassung!C628)","v":"0"}]